Cogmind - Beta 16 @@@ ROGUE MODE // 2025.12.21 @ 03:15:39 Player: Boris Result: Establishing 0b11! Performance ------------- Evolutions (9) 4500 Regions Visited (26) 5200 Robots Destroyed (804) 4020 Value Destroyed (45144) 45144 Prototype IDs (366) 7320 Alien Tech Used (9) 1800 Bonus (75075) 75075 TOTAL SCORE: 143059 Bonus ------- Triggered High Security 1000 High Alert Combat Kills 22342 Follower Combat Kills 3504 Built PL-3XN's Obliterator 1000 Network Hubs Disabled 400 Met Zhirov 300 Built Enhanced Grunts 300 Met R17 at Cetus 500 Found Hidden Lab 3000 Met R17 at Research 2000 Scanned by Researcher 500 Recovered Sigix Corpse 2000 Destroyed MAIN.C Guards 500 Met MAIN.C 5000 Destroyed MAIN.C Shell 5000 Destroyed MAIN.C 10000 Met Architect 300 Destroyed A8 300 Destroyed A6 400 Destroyed A5 500 Destroyed A4 700 Destroyed A2 1000 Destroyed Architect 15000 Win 3000 Friendly Fire -3471 Cogmind --------- Core Integrity 964/1600 Matter 185/300 Energy 222/565 System Corruption 0% Temperature Cool (7) Movement Hovering (33) Location 0b11 Command Parts ------- > --- POWER (3) -------- Antimatter Reactor Concept Zero-point Core Concept Zero-point Core > --- PROPULSION (7) --- Cooled Linear Gravjet Experimental Antigrav System Gravjet Array Concept Combat Aerolev Unit Concept Combat Aerolev Unit (fused) Concept Combat Aerolev Unit > --- UTILITY (13) ----- Concept Antigrav Storage Unit Concept Dimensional Manipulator Experimental Melee Analysis Suite Concept Melee Reflex Suite Concept Weapon Articulator Concept Core Analysis Suite Matter Filter Experimental Phase Shifter SHELL Armor Graphene Brace Experimental Force Field > --- WEAPON (3) ------- Sigix Broadsword Experimental Jetlance > --- INVENTORY (25) --- Cooled Linear Gravjet Experimental Antigrav System Gravjet Array Experimental Cooling System Advanced Energy Well (500) Concept Chromion Battery (800) Concept NT7 Matterbank (265) Concept Core Analysis Suite Experimental Weapon Cycler Femtoactuators Femtoactuators Experimental Phase Shifter Concept Cloak Mesh AEGIS Remote Shield Advanced System Restoration Module Concept Impact Drone Bay (0/6) Concept Impact Drone Bay (5/6) High-powered Transdimensional Reconstructor Warp Cannon Null Cannon Sigix Corpse Peak State ------------ > --- POWER ------------ Concept Zero-point Core Concept Zero-point Core Concept Zero-point Core > --- PROPULSION ------- Experimental Antigrav System Experimental Antigrav System Gravjet Array Concept Combat Aerolev Unit Concept Combat Aerolev Unit Concept Combat Aerolev Unit > --- UTILITY ---------- Concept Antigrav Storage Unit Concept Dimensional Manipulator Experimental Melee Analysis Suite Concept Melee Reflex Suite Concept Weapon Articulator Concept Core Analysis Suite Femtoactuators Concept Reaction Jets Concept Phase Shift Module SHELL Armor Experimental Force Field > --- WEAPON ----------- Sigix Broadsword Experimental Jetlance > --- INVENTORY -------- Cooled Linear Gravjet Experimental Antigrav System Gravjet Array Experimental Cooling System Concept Chromion Battery Experimental Matter Compressor Concept NT7 Matterbank Structural Scanner Concept Core Analysis Suite Improved Armor Integrity Analyzer Improved Weapon Cycler Femtoactuators Experimental Force Booster Advanced Phase Shifter Concept Cloak Mesh Graphene Brace AEGIS Remote Shield Concept Impact Drone Bay Concept Impact Drone Bay Transdimensional Reconstructor Warp Cannon Null Cannon PL-3XN's Obliterator [Rating: 315] Favorites ----------- Power Constructs Engine Heavy Ion Engine Power Core Constructs Reactor Quantum Reactor Propulsion Light Treads Treads Light Treads Leg Centrium Leg Wheel Compact Wheel Hover Unit Concept Combat Aerolev Unit Flight Unit Improved VTOL Module Utility High-capacity Storage Unit Device Armored Scrap Engine Storage High-capacity Storage Unit Processor Experimental Terrain Scan Processor Hackware Advanced System Shield Protection Medium Regenerative Plating Weapon Advanced KE Penetrator Energy Gun Advanced Beam Rifle Energy Cannon HERF Cannon Ballistic Gun Advanced KE Penetrator Ballistic Cannon Constructs Launcher Tiamat Missile Launcher Special Weapon Multitool Impact Weapon Hammer Slashing Weapon Phasing Sabre Piercing Weapon Experimental Jetlance Special Melee Weapon Improved Datajack Build | -11 -10 -10 -8 -8 -8 -6 -6 -6 -6 -6 -5 -5 -5 -5 -4 -4 -4 -4 -3 -3 -2 -2 -2 -1 -1 -1 ------- Run | Yrd Mat Sub Mat Sto Rec Fac Ext Cet Arc Hub Fac Upp Upp Zhi Pro Fac Arm Lab Res Tes Res Qua Frg Acc Com Ac0 Slots Evolved 18 | . . . 4 . . 4 . . . . 2 . . . . 2 . . 2 . 2 . . 2 . . Power 2 | . . . . . . . . . . . . . . . . 1 . . . . . . . 1 . . Propulsion 5 | . . . 2 . . 1 . . . . . . . . . . . . 1 . 1 . . . . . Utility 10 | . . . 1 . . 3 . . . . 2 . . . . 1 . . 1 . 1 . . 1 . . Weapon 1 | . . . 1 . . . . . . . . . . . . . . . . . . . . . . . Parts Attached 326 | 6 7 10 21 29 4 20 22 6 6 4 17 1 2 1 1 16 20 5 20 9 17 13 45 6 13 5 Power 34 | 1 . 2 1 2 . 4 3 1 . . . . . . . 2 3 . . 1 2 2 6 1 2 1 Engine 11 | 1 . 2 1 2 . 2 3 . . . . . . . . . . . . . . . . . . . Core 7 | . . . . . . 2 . . . . . . . . . 1 . . . . . . 3 1 . . Reactor 16 | . . . . . . . . 1 . . . . . . . 1 3 . . 1 2 2 3 . 2 1 Propulsion 49 | 2 . . 7 7 2 . 2 . . 1 . . . . . . . . 8 . 4 1 14 . 1 . Treads 14 | 2 . . 3 6 . . . . . . . . . . . . . . 1 . 2 . . . . . Leg 17 | . . . . . . . 2 . . 1 . . . . . . . . 7 . 2 1 4 . . . Wheel 3 | . . . 2 . 1 . . . . . . . . . . . . . . . . . . . . . Hover 14 | . . . 2 1 . . . . . . . . . . . . . . . . . . 10 . 1 . Flight 1 | . . . . . 1 . . . . . . . . . . . . . . . . . . . . . Utility 154 | 1 3 4 3 7 2 12 8 3 4 3 12 . . 1 . 12 6 3 9 6 8 8 21 5 9 4 Device 90 | . . 2 1 4 2 7 8 1 4 2 5 . . 1 . 9 3 1 5 . 5 4 13 4 6 3 Storage 11 | 1 2 . 1 . . . . . . . 1 . . . . . 1 . . 2 . . 1 . 1 1 Processor 25 | . . . 1 . . 3 . . . . 2 . . . . 2 2 . 1 2 2 2 7 . 1 . Hackware 15 | . . . . 2 . 2 . . . 1 3 . . . . 1 . 1 1 . . 2 . 1 1 . Protection 13 | . 1 2 . 1 . . . 2 . . 1 . . . . . . 1 2 2 1 . . . . . Artifact . | . . . . . . . . . . . . . . . . . . . . . . . . . . . Weapon 89 | 2 4 4 10 13 . 4 9 2 2 . 5 1 2 . 1 2 11 2 3 2 3 2 4 . 1 . Energy Gun 23 | 2 . . 6 4 . 1 3 . . . . . . . . . 2 . 1 . 3 . 1 . . . Energy Cannon 15 | . 2 1 . 2 . . . . . . . . . . . 1 2 2 . 2 . . 2 . 1 . Ballistic Gun 20 | . . 3 1 4 . . 2 2 1 . 1 1 2 . . 1 2 . . . . . . . . . Ballistic Cannon 7 | . . . 1 . . 1 . . . . 1 . . . . . 3 . . . . 1 . . . . Launcher 7 | . 1 . 1 . . 1 1 . . . 2 . . . . . 1 . . . . . . . . . Special Weapon 3 | . . . 1 1 . . . . . . . . . . 1 . . . . . . . . . . . Impact Weapon 1 | . 1 . . . . . . . . . . . . . . . . . . . . . . . . . Slashing Weapon 9 | . . . . 1 . 1 3 . . . . . . . . . 1 . 2 . . 1 . . . . Piercing Weapon 1 | . . . . . . . . . . . . . . . . . . . . . . . 1 . . . Special Melee Weapon 3 | . . . . 1 . . . . 1 . 1 . . . . . . . . . . . . . . . Unidentified Prototypes 68 | . . . 2 8 2 6 1 4 . . 2 . . 2 . . 2 6 5 4 1 5 15 . 3 . Corrupted Parts 4 | . . . . . . . . 2 1 . . . . . . . . . . 1 . . . . . . System Corruption 31 | . . . . . . . . 12 9 . . . . . . . . . . 10 . . . . . . Parts Lost 46 | . . 1 2 4 . 6 2 . . 1 3 . . . 5 . 2 . . 13 1 . 1 . . 5 Power 7 | . . 1 . 1 . 2 . . . . . . . . 1 . . . . 1 . . . . . 1 Propulsion 4 | . . . 1 . . . . . . 1 . . . . . . . . . 2 . . . . . . Utility 20 | . . . . 1 . 1 . . . . 1 . . . 1 . 1 . . 10 1 . 1 . . 3 Weapon 15 | . . . 1 2 . 3 2 . . . 2 . . . 3 . 1 . . . . . . . . 1 Highest Loss Streak 12 | . . 1 1 4 . 2 1 . . 1 1 . . . 3 . 1 . . 12 1 . 1 . . 1 To Critical Strikes 1 | . . . . . . . . . . . . . . . 1 . . . . . . . . . . . Average Backups 17 | 1 10 14 17 18 19 19 17 17 16 17 17 18 18 18 18 18 18 17 15 14 13 16 20 21 22 20 Power . | . 1 . 1 1 1 . . . . . . 1 1 1 1 . . . . . . . . . . . Propulsion . | . . . . . 1 . . . . . . . . . . . . . . . . . 1 2 2 3 Utility 10 | . 1 4 5 9 10 12 10 11 12 10 10 13 12 13 12 14 11 9 8 7 5 7 11 14 15 14 Weapon 4 | . 8 7 8 5 5 3 4 4 2 5 4 2 3 3 1 1 3 5 3 4 4 5 4 3 2 3 Tool/Special . | . . . . . . . . . . . . . . . . . . . . . . . . . . . Unused Backups 80 | . 4 2 4 4 4 7 2 4 1 . 3 . 3 . 2 5 5 1 3 1 . 4 8 1 1 11 Power 4 | . . . 1 . . . 1 . . . . . 1 . . . . . 1 . . . . . . . Propulsion 9 | . . . 1 . 1 . . . 1 . . . . . 1 1 2 . . . . . . . . 2 Utility 45 | . . 1 . 1 . 4 1 4 . . 2 . 2 . 1 3 3 . 2 1 . 2 8 1 1 8 Weapon 19 | . 4 1 2 2 3 3 . . . . 1 . . . . 1 . 1 . . . 1 . . . . Tool/Special 3 | . . . . 1 . . . . . . . . . . . . . . . . . 1 . . . 1 Average Slot Usage (%) 78 | . 90 99 90 98 75 58 69 72 68 72 68 71 72 70 70 71 72 76 87 88 79 86 82 82 83 83 Engine 3 | . 14 13 9 8 8 3 6 5 4 . . . . . . . . . . . . . . . . . Core 2 | . . . . . . 2 . . . . 3 5 5 5 4 8 2 . . . . . 3 11 9 7 Reactor 2 | . . . . . . . . . 1 6 1 . . . . 1 7 10 8 9 7 8 4 . 1 2 Treads 8 | . 28 28 23 32 16 . 2 . . . 1 5 5 5 3 3 5 5 1 . 2 . . . . . Leg 4 | . . . . . . . 7 13 11 12 3 . . . 1 1 . . 17 24 18 27 16 . . . Hover 2 | . . . 3 2 1 2 . . . . . . . . . . . . . . . . 8 23 23 23 Device 11 | . . 6 6 8 7 9 15 15 14 12 10 8 8 6 10 10 13 20 22 21 18 14 12 20 21 22 Storage 6 | . 14 14 9 9 9 6 6 6 6 6 5 5 5 5 5 5 5 5 4 5 4 4 4 3 3 3 Processor 7 | . . . 2 . . 6 9 6 6 6 6 10 10 10 10 9 11 10 9 10 11 14 17 13 11 11 Hackware 3 | . . . . 7 1 8 . . . . 8 5 5 5 5 9 7 5 9 6 . 2 1 . . . Protection 3 | . 5 7 9 2 1 . . 4 2 6 5 6 6 5 5 3 2 5 3 1 7 4 4 3 3 3 Energy Gun 2 | . 18 . 17 12 . . 6 2 2 6 3 . . . . . . 3 . . 1 2 . . . . Energy Cannon 2 | . 2 10 1 . 1 5 1 . . . . . . . 3 3 5 5 4 3 1 2 1 . . . Ballistic Gun 7 | . . 17 5 11 12 . 6 10 7 6 5 24 25 21 13 4 3 . . . . . . . . . Ballistic Cannon 1 | . . . 1 . 2 3 1 . . . 3 . . . . . 2 4 . . . . . . . . Slashing Weapon 2 | . . . . . 4 1 1 2 3 5 2 . . 4 1 4 2 . 3 3 3 3 3 3 2 2 Peak Build Rating 315 | 6 8 14 35 36 54 92 109 117 117 115 146 143 143 145 144 141 139 151 189 196 208 222 284 311 315 313 Average Rating 116 | 4 6 11 27 33 37 71 95 109 104 110 120 139 140 139 130 124 127 137 168 177 177 210 247 299 307 296 On Entrance 127 | . 6 8 14 34 35 54 90 101 117 109 106 138 142 142 144 123 124 139 151 186 152 196 221 282 311 306 Avg Prop Armor Cover (%) 4 | . . . 8 2 6 1 1 . . . . . . . . . . . 3 2 7 . 1 . . . Naked Turns . | . . . . . . . . . . . . . . . . . . . . . . . . . . . Heaviest Build 143 | 14 34 37 68 66 68 68 70 80 80 82 102 92 92 92 90 104 129 130 132 129 129 136 136 130 138 143 Greatest Support 249 | 40 40 40 83 83 75 72 82 80 131 131 206 249 153 153 153 138 123 123 158 158 178 206 206 144 147 140 Greatest Overweight (x) 6 | 3 . . 6 . 3 . 1 . 1 . . . . . . . 1 1 1 1 1 . 1 1 . 1 Average Overweight (x) . | . . . . . . . . . . . . . . . . . . . . . . . . . . . Largest Inventory Capacity 25 | 8 15 15 20 20 20 20 20 20 20 20 20 20 20 20 20 20 20 20 20 20 20 20 25 25 25 25 Average Capacity 20 | 7 14 15 19 20 20 20 20 20 20 20 20 20 20 20 20 20 20 20 20 20 20 20 22 25 25 25 Most Carried 25 | 2 15 15 20 20 20 20 20 20 20 20 20 20 20 20 20 20 20 20 20 20 20 20 25 25 25 25 Average Carried 19 | 1 10 14 18 19 19 19 19 19 18 19 18 19 19 18 19 19 19 17 19 19 19 18 22 23 24 23 Final Capacity 25 | 8 15 15 20 20 20 20 20 20 20 20 20 20 20 20 20 20 20 20 20 20 20 20 25 25 25 25 Final Carried 23 | 2 15 15 19 20 20 20 20 20 20 19 20 20 20 20 20 20 20 20 20 20 20 20 23 22 23 22 Scrap Engine Consumption 234 | . . . . . 92 29 31 15 5 10 12 4 13 1 15 7 . . . . . . . . . . Constructs Created 15 | . . . . . 4 1 2 . 3 . 1 . . . 4 . . . . . . . . . . . Constructs Modified 72 | . . . . . 37 3 6 . 7 . 7 2 . . 9 1 . . . . . . . . . . Class Distribution -------------------- 11% | Construct 9% | Commander-Construct 9% | Mutant 9% | Scavenger-Mutant 9% | Scavenger-Skirmisher 6% | Hacker-Assassin 5% | Hacker-Construct 5% | Scavenger-Gunner 3% | Scavenger-Gladiator 3% | Tank Dominant Class ---------------- Mutant | -10/Materials Mutant | -10/Subcaves Tank | -8/Materials Scavenger-Gunner | -8/Storage Construct | -8/Recycling Construct | -6/Factory Commander-Construct | -6/Extension Commander-Construct | -6/Cetus Commander-Construct | -6/Archives Commander-Construct | -6/Hub_04(d) Hacker-Construct | -5/Factory Scavenger-Skirmisher | -5/Upper Caves Scavenger-Skirmisher | -5/Upper Caves Scavenger-Gunner | -5/Zhirov Construct | -4/Proximity Caves Hacker-Mutant | -4/Factory Hacker-Skirmisher | -4/Armory Scavenger-Skirmisher | -4/Lab Hacker-Assassin | -3/Research Hacker-Assassin | -3/Testing Scavenger-Mutant | -2/Research Scientist-Mutant | -2/Quarantine Scavenger-Gladiator | -2/Protoforge Gladiator | -1/Access Scavenger-Sprinter | -1/Command Scavenger-Sprinter | -1/Access_0 Resources | -11 -10 -10 -8 -8 -8 -6 -6 -6 -6 -6 -5 -5 -5 -5 -4 -4 -4 -4 -3 -3 -2 -2 -2 -1 -1 -1 ----------- Run | Yrd Mat Sub Mat Sto Rec Fac Ext Cet Arc Hub Fac Upp Upp Zhi Pro Fac Arm Lab Res Tes Res Qua Frg Acc Com Ac0 Matter Collected 22096 | 193 207 258 305 688 2754 1158 944 178 658 665 1505 268 371 . 723 531 2485 . 585 156 430 494 2881 348 2346 965 Remotely 271 | . . . . . . . . . . . 271 . . . . . . . . . . . . . . . Salvage Created 38661 | . 494 571 576 1789 2976 1791 1686 710 358 1139 2592 239 550 . 922 892 2887 . 230 962 1446 757 6665 3933 3677 819 Parts 1637 | . 36 34 26 94 95 69 77 40 34 30 118 6 22 . 32 58 108 . 9 32 81 27 306 168 112 23 Haulers Intercepted 19 | . 2 . 2 5 . 3 . . . 2 . . . . 1 . . . 1 . 1 . . 2 . . Recyclers Shooed 11 | . 1 . 1 1 2 4 1 . . . . . . . . . . . . . 1 . . . . . Parts Field Recycled . | . . . . . . . . . . . . . . . . . . . . . . . . . . . Retrieved Matter . | . . . . . . . . . . . . . . . . . . . . . . . . . . . Parts Self-Destructed 52 | . . 3 . . . . . . . . . 6 20 . 23 . . . . . . . . . . . Prevented 3 | . . . . . . . . . . . . . . . 3 . . . . . . . . . . . Parts Restored 12 | . . . . . . . . . . . . . . . . . . . . . . . 12 . . . Faulty 12 | . . . . . . . . . . . . . . . . . . . . . . . 12 . . . Kills | -11 -10 -10 -8 -8 -8 -6 -6 -6 -6 -6 -5 -5 -5 -5 -4 -4 -4 -4 -3 -3 -2 -2 -2 -1 -1 -1 ------- Run | Yrd Mat Sub Mat Sto Rec Fac Ext Cet Arc Hub Fac Upp Upp Zhi Pro Fac Arm Lab Res Tes Res Qua Frg Acc Com Ac0 Combat Hostiles Destroyed 614 | . 11 11 9 26 9 31 26 7 . 15 34 3 8 . 15 15 42 . 4 5 21 4 92 51 164 11 Melee 150 | . . . . 1 1 5 6 . . . . . . . . 4 . . . 2 2 . 48 51 21 9 Guns 120 | . 5 6 7 25 8 . 15 . . 11 20 3 8 . 8 . 3 . . . 1 . . . . . Cannons 213 | . . 4 . . . 12 2 . . . 4 . . . 3 3 16 . 1 2 8 . 13 . 143 2 AOE 62 | . 6 . 2 . . 12 2 1 . . 7 . . . 4 6 9 . 1 1 4 . 7 . . . Classes Destroyed 34 | . 7 2 3 3 2 4 . . . . 1 2 1 . 1 . . . . 1 . . 4 . 3 . Worker 28 | . 2 . 1 1 1 5 . . . 7 2 . . . . . . . . 2 3 1 2 . 1 . Builder 20 | . 3 . 1 . 1 4 2 . . . 2 . . . . 1 . . . 1 3 1 . 1 . . Tunneler 10 | . . . . . . 1 5 . . . . . . . . 1 . . . . 2 . . 1 . . Hauler 19 | . 2 . 2 5 . 3 . . . 2 . . . . 1 . . . 1 . 1 . . 2 . . Recycler 38 | . 1 . . 2 22 2 1 . . . 2 . . . . . . . . 5 . 1 . 1 1 . Carrier 6 | . . . . . . . . . . . . . . . . . . . . . . . . . 6 . Minesweeper 3 | . . . . . . . . . . . . 1 1 . 1 . . . . . . . . . . . Mechanic 5 | . . . . . . 1 . . . . 1 . . . . 1 . . . 1 . . . . 1 . Operator 21 | . . . . 1 . 1 3 . 9 1 1 . . . . . 1 . . 1 . 1 1 . 1 . Drone 4 | . . . . . . . . . . . . . . . . . . . . . . . 3 . 1 . Watcher 28 | . 2 . 2 1 . . . 2 . . 2 . . . . 1 6 . . . 1 1 1 4 5 . Swarmer 90 | . 9 . 1 1 . 4 3 . . . 4 1 4 . . 6 6 . 2 2 4 . 5 9 29 . Cutter 12 | . . . . . . . . . . . . . . . . . . . . . . . . 3 9 . Saboteur 9 | . . . . . . 2 . . . . . . . . . . . . . . . . 1 3 3 . Grunt 170 | . 2 . 3 13 . 10 8 . . 11 8 1 3 . 11 3 17 . . 1 6 . 20 15 38 . Brawler 17 | . . . . 2 . . 1 . . . 2 . . . . . 2 . . . . . 3 2 5 . Duelist 21 | . . . . 1 . 1 2 . . . 3 . . . . . 2 . . . . . 4 1 7 . Protector 11 | . . . . . . 2 . . . . . . . . . . 1 . . . . . 5 . 3 . Researcher 7 | . . . . . . . . . . . . . . . . . . . . 2 . 2 3 . . . Sentry 43 | . . . 2 9 . 3 9 . . 3 3 1 . . . 1 . . . . 1 . 8 2 1 . Demolisher 4 | . . . . . 1 . 1 . . . . . . . . . 1 . . . . . . . 1 . Specialist 11 | . . . 2 . . 3 2 . . . 4 . . . . . . . . . . . . . . . Hunter 53 | . . . 1 . . 2 . . . . 4 . . . 2 2 . . 2 . . 3 4 8 25 . Programmer 98 | . . . . . 1 5 . . . 1 4 . . . 1 2 10 . . 2 10 1 23 8 30 . Heavy 2 | . . . . . . . . . . . 2 . . . . . . . . . . . . . . . Behemoth 3 | . . . . . . . . . . . . . . . 1 1 . . . . . . . . 1 . Armor Guard 4 | . . . . . . . . . . . . . . . . . 4 . . . . . . . . . Cetus Guard 7 | . . . . . . . . 7 . . . . . . . . . . . . . . . . . . M Guard 2 | . . . . . . . . . . . . . . . . . . . . . . . . . 2 . Enhanced Grunt 4 | . . . . . . . . . . . . . . . . . . . . . . . . . . 4 Enhanced Sentry 1 | . . . . . . . . . . . . . . . . . . . . . . . . . . 1 Enhanced Hunter 3 | . . . . . . . . . . . . . . . . . . . . . . . . . . 3 Hotshot 5 | . . . . . . . . . . . . . . . . . . . . . . . 5 . . . Decapitator 4 | . . . . . . . . . . . . . . . . . . . . . . . 4 . . . Immortal 3 | . . . . . . . . . . . . . . . . . . . . . . . 3 . . . Combat Programmer 2 | . . . . . . . . . . . . . . . . . . . . . . . . . 2 . Investigator 1 | . . . . . . . . . . . . . . . . . . . . . . . . . 1 . Striker 3 | . . . . . . . . . . . . . . . . . . . . . . . . . 3 . Executioner 2 | . . . . . . . . . . . . . . . . . . . . . . . . . 2 . Alpha 7 2 | . . . . . . . . . . . . . . . . . . . . . . . 2 . . . V-Series 2 | . . . . . . . . . . . . . . . . . . . . . . . 2 . . . Artisan 1 | . . 1 . . . . . . . . . . . . . . . . . . . . . . . . Subdweller 18 | . . 11 . . 7 . . . . . . . . . . . . . . . . . . . . . Packrat 1 | . . . . . . . . . . . . . 1 . . . . . . . . . . . . . Samaritan 1 | . . . . . . . . . . . . 1 . . . . . . . . . . . . . . Thug 1 | . . . . . . . 1 . . . . . . . . . . . . . . . . . . . Butcher 2 | . . . . . . . 2 . . . . . . . . . . . . . . . . . . . Mutant 2 | . . . . . . . . . . . . . 2 . . . . . . . . . . . . . Best Kill Streak 95 | . 7 3 3 4 3 21 8 5 1 6 15 3 4 . 6 4 7 . 2 7 10 6 11 12 95 2 Combat Bots Only 86 | . 6 3 2 4 2 11 8 4 . 2 10 3 4 . 5 4 6 . 2 2 7 4 10 12 86 2 Max Kills in Single Turn 22 | . 3 1 2 2 1 4 2 1 1 4 2 1 2 . 2 4 4 . 2 3 4 1 3 2 22 1 Gunslinging 1 | . . . . 1 . . . . . . . . . . . . . . . . . . . . . . Exploded 4 | . 3 . 1 . . 3 1 1 . . 2 . . . 2 4 4 . 1 1 3 . 3 . . . Melee 2 | . . . . 1 1 1 1 . . . . . . . . 1 . . . 1 1 . 1 2 2 1 Uniques/NPCs Destroyed 7 | . . . . . . . . 1 . . . . . . . . . . . . . . . . 2 4 A7 (-6/Cetus) MAIN.C Shell (-1/Command) MAIN.C (-1/Command) A6 (-1/Access_0) A5 (-1/Access_0) A4 (-1/Access_0) Architect (-1/Access_0) Combat | -11 -10 -10 -8 -8 -8 -6 -6 -6 -6 -6 -5 -5 -5 -5 -4 -4 -4 -4 -3 -3 -2 -2 -2 -1 -1 -1 -------- Run | Yrd Mat Sub Mat Sto Rec Fac Ext Cet Arc Hub Fac Upp Upp Zhi Pro Fac Arm Lab Res Tes Res Qua Frg Acc Com Ac0 Hostile Shots Fired 3191 | . 34 49 47 70 13 332 322 19 6 141 177 8 15 . 103 74 119 . 31 99 72 64 427 194 353 422 Missed 1461 | . 10 19 17 25 7 132 105 13 3 49 58 2 10 . 37 27 38 . 11 28 29 15 200 135 263 228 Intercepted 7 | . . . . . . . . . . . . . . . . . . . . . . . 7 . . . Hits 1730 | . 24 30 30 45 6 200 217 6 3 92 119 6 5 . 66 47 81 . 20 71 43 49 227 59 90 194 Melee 44 | . . . . . . 2 1 . . . 2 . . . . . . . 1 . . . 28 2 7 1 Projectile 1686 | . 24 30 30 45 6 198 216 6 3 92 117 6 5 . 66 47 81 . 19 71 43 49 199 57 83 193 AOE 12 | . . . . . . . 1 . . . . . . . . . 2 . . . . . 4 1 4 . Critical Strikes 110 | . . 3 1 2 1 3 5 1 . 3 6 . 1 . 3 4 6 . 1 5 1 13 27 2 6 16 Actively Blocked 45 | . . . . . . . . . . . . . . . . . . . 1 5 1 13 19 . . 6 Part Disruptions 13 | . . . . . . . . . . . 1 . . . . . 2 . . 2 1 . 3 . 3 1 Damage Taken 32228 | . 234 700 467 717 184 2555 1999 82 145 1675 2596 121 80 . 1362 825 1697 . 457 2407 1207 1123 4992 915 1879 3809 Core 2407 | . 50 77 14 31 . 261 207 44 . 152 277 . 14 . 106 44 84 . 87 173 99 88 175 26 165 233 Absorbed by Shields 4313 | . . . . . . 78 542 77 . . . . . . . . 56 . . . . 22 385 269 861 2023 Reduced by Siege Mode 5 | . . . . . . . . . . . 5 . . . . . . . . . . . . . . . Redirected to Shielding 63 | . . . . . . . . . . . . . . . . . . . . 29 34 . . . . . Ignored by Resistances 778 | . . . . . . . . . . . . . . . . . . . . . . . 778 . . . Regen/Repaired (Parts) 15902 | . . . . 135 16 691 1183 77 676 229 949 798 95 . 869 702 235 . 75 191 605 755 3534 750 1246 2091 Core Remaining (%) 67 | 100 . 49 . . 91 . . . . 21 . . . . 60 . . 88 . 80 . . 61 . . 60 Volleys Fired 1129 | . 17 50 24 69 36 113 57 23 48 59 69 6 12 . 36 37 207 11 10 28 43 16 95 3 38 22 Largest 5 | . 2 2 3 3 3 3 3 1 3 2 5 5 5 . 5 2 3 1 1 1 2 3 1 1 1 1 Hottest 300 | . 120 120 183 201 125 240 220 43 130 114 192 162 162 . 191 123 266 120 200 200 150 225 300 130 130 130 Shots Fired 1860 | . 30 75 66 185 88 134 132 24 57 111 186 31 53 2 135 39 241 11 10 26 52 18 92 3 38 21 Gun 1000 | . 18 35 63 179 78 4 112 1 13 105 148 31 53 2 96 1 42 . . . 16 3 . . . . Cannon 706 | . 8 40 . 6 10 117 17 . . . 24 . . . 36 35 188 11 10 26 31 12 73 3 38 21 Launcher 95 | . 4 . 3 . . 13 3 8 . 6 14 . . . 3 3 11 . . . 5 3 19 . . . Special 59 | . . . . . . . . 15 44 . . . . . . . . . . . . . . . . . Kinetic 798 | . . 35 9 27 83 58 38 1 8 . 142 31 53 2 132 1 122 . . . . 1 3 . 32 20 Thermal 731 | . 8 40 18 158 1 32 78 15 49 105 30 . . . . . 48 11 10 26 28 11 53 3 6 1 Explosive 44 | . 4 . 3 . . 13 2 . . 6 3 . . . 3 3 7 . . . . . . . . . Electromagnetic 287 | . 18 . 36 . 4 31 14 8 . . 11 . . . . 35 64 . . . 24 6 36 . . . Robot Hit Streak 22 | . 8 19 11 15 11 14 14 4 7 10 19 8 7 . 15 10 14 . 2 4 8 13 22 . 9 1 Robot Miss Streak 10 | . 2 3 6 2 2 4 10 4 9 8 5 2 5 . 5 3 2 . 1 2 2 3 3 . 2 1 Penetration Max 5 | . . . . . . . . . . . 1 . 1 . 1 . . . . . . . 2 . 5 1 Secondary Targets 12 | . 1 . . 3 . . 3 . . 3 . . 2 . . . . . . . . . . . . . Max Gunslinging Chain 1 | . 1 . . 1 . . 1 . . 1 . . 1 . . . . . . . . . . . . . Capacitor 115 | . . . . . . . . . . . . . . . . 30 85 . . . . . . . . . Shots Hit Robots 1799 | . 25 58 35 122 117 95 153 20 48 89 127 13 23 . 91 42 104 . 6 19 47 18 183 122 119 123 Core Hits 1215 | . 21 17 23 55 45 91 121 26 14 74 108 7 21 . 50 24 79 . 3 13 47 11 173 64 74 54 Critical Kills 41 | . 1 2 . . 1 1 . . . . 9 2 5 . 3 . 9 . 2 . . 1 5 . . . Critical Parts Destroyed 19 | . 1 . . . . 1 . . . . 7 1 . . 3 . 4 . . . . . 2 . . . Critical Strikes 208 | . 2 2 2 7 1 6 4 1 . . 18 3 5 . 10 4 18 . 2 . 1 1 27 12 60 22 Burn 9 | . . . 2 7 . . . . . . . . . . . . . . . . . . . . . . Meltdown 11 | . . 1 . . . . . . . . . . . . . . 3 . 2 . . 1 4 . . . Destroy 57 | . . 1 . . 1 2 . . . . 17 3 5 . 10 . 15 . . . . . 3 . . . Blast 48 | . . . . . . . . . . . 1 . . . . . . . . . . . 2 . 44 1 Corrupt 1 | . . . . . . . . . . . . . . . . 1 . . . . . . . . . . Smash 2 | . 2 . . . . . . . . . . . . . . . . . . . . . . . . . Sever 36 | . . . . . . 4 4 1 . . . . . . . 3 . . . . 1 . 9 8 4 2 Impale 44 | . . . . . . . . . . . . . . . . . . . . . . . 9 4 12 19 Melee Attacks 959 | . 18 . . 13 64 26 56 10 18 2 15 1 5 . 2 24 8 . 24 15 19 26 182 138 149 144 Impact 18 | . 18 . . . . . . . . . . . . . . . . . . . . . . . . . Slashing 791 | . . . . 12 64 26 34 10 16 2 12 1 5 . 2 24 8 . 24 15 19 26 141 127 112 111 Piercing 122 | . . . . . . . . . . . . . . . . . . . . . . . 41 11 37 33 Sneak Attacks 136 | . 7 . . 1 30 4 29 10 10 . 4 . . . 2 5 1 . 1 4 5 5 9 6 3 . Combat Hostiles 4 | . . . . . . . 1 . . . . . . . . 1 . . . . . . . 1 1 . Follow-up Attacks 74 | . . . . . . . . . . . . . . . . . . . . . . . 23 6 16 29 Martial Strikes 87 | . . . . . . . . . . . . . . . . . . . . . . . 20 43 20 4 Damage Inflicted 109105 | . 989 1086 917 2550 5223 6972 4414 1909 1674 2830 5577 327 783 . 3306 2566 6113 . 1323 3625 4090 1827 18291 10701 13890 8122 Guns 15507 | . 128 301 597 2158 937 57 2166 . 322 2196 2735 317 783 . 1655 24 614 . . . 369 148 . . . . Cannons 22584 | . 72 785 . 125 351 2722 408 . . . 567 . . . 607 700 2980 . 636 1484 1794 334 4309 . 4510 200 Explosions 18760 | . 308 . 279 . . 3302 431 1264 . 591 2094 . . . 850 931 2351 . 556 1354 998 380 3071 . . . Melee 51847 | . 467 . . 217 3935 891 1408 599 1210 . 137 . . . 194 911 168 . 131 787 913 965 10911 10701 9380 7922 Ramming 219 | . 14 . 41 50 . . 1 . . 43 44 10 . . . . . . . . 16 . . . . . Kinetic 16329 | . . 301 72 325 1094 1666 762 . 167 . 2770 317 783 . 2262 24 776 . . . . 75 225 . 4510 200 Thermal 20673 | . 72 785 213 1958 39 583 1475 440 297 2196 773 . . . . 523 1449 . 1192 2838 1899 259 3682 . . . Explosive 8044 | . 308 . 246 . . 3158 431 . . 171 1031 . . . 850 408 1441 . . . . . . . . . Electromagnetic 11993 | . 128 . 345 . 155 674 337 870 . 420 822 . . . . 700 2279 . . . 1262 528 3473 . . . Impact 467 | . 467 . . . . . . . . . . . . . . . . . . . . . . . . . Slashing 46193 | . . . . 217 3935 891 1408 599 1210 . 137 . . . 194 911 168 . 131 787 913 965 9446 10249 7317 6715 Piercing 5187 | . . . . . . . . . . . . . . . . . . . . . . . 1465 452 2063 1207 Highest Corruption 43 | . 1 1 . . . 2 4 12 12 6 2 2 2 2 2 5 5 5 . 43 4 7 28 4 15 . Average Corruption 6 | . 1 1 . . . 1 2 11 10 2 1 2 2 2 2 2 4 5 . 28 2 4 19 3 9 . Corruption Purged 46 | . . . . . . . 4 . 21 . 1 . . . . 5 . . . . . . . . 15 . Corruption Blocked . | . . . . . . . . . . . . . . . . . . . . . . . . . . . Effects 339 | . 7 10 . . . 3 11 7 20 2 3 13 18 3 15 9 25 6 . 15 3 26 107 9 27 . Message Errors 76 | . 2 2 . . . . 3 3 2 1 . 3 5 . 1 1 8 2 . 5 . 6 24 1 7 . Matter Fused 74 | . . 1 . . . 2 1 1 5 . 1 4 2 . 2 5 6 2 . . . 8 26 3 5 . Heat Flow Errors 56 | . 2 2 . . . 1 1 1 6 . 1 . 2 1 4 . 1 2 . 2 . 4 20 1 5 . Energy Discharges 38 | . 1 2 . . . . 2 . 2 . . 3 4 . 3 . 3 . . 1 . 4 8 2 3 . Parts Rejected 4 | . . . . . . . . . . . . . . . . . . . . . . . 2 . 2 . Parts Fused 4 | . . . . . . . . . . . . . . . 1 . . . . 1 . . 2 . . . Data Loss (minor) 35 | . 1 1 . . . . 2 1 3 1 . 1 . . 3 1 1 . . 1 2 2 11 1 3 . Data Loss (major) 16 | . . . . . . . . 1 1 . 1 . 3 . 1 . 1 . . 1 . 2 3 1 1 . Misfires 10 | . . . . . . . . . . . . 1 2 2 . 1 3 . . . 1 . . . . . Alerts 9 | . 1 . . . . . 1 . 1 . . 1 . . . 1 2 . . . . . 2 . . . Misdirections 9 | . . . . . . . . . . . . . . . . . . . . 2 . . 6 . 1 . Weapon Failures 8 | . . 2 . . . . 1 . . . . . . . . . . . . 2 . . 3 . . . Overload Shots 1 | . . . . . . 1 . . . . . . . . . . . . . . . . . . . . Overflow Damage 8206 | . 147 . . 19 1119 360 80 11 498 74 58 7 . . 127 258 378 . 171 611 454 476 1793 862 634 69 Projectiles 2237 | . . . . . 74 222 27 . . . 3 . . . . . 197 . 135 287 267 37 627 . 361 . Explosions 605 | . . . . . . 41 3 11 . 74 . . . . 27 137 93 . 36 152 . . 31 . . . Melee 5364 | . 147 . . 19 1045 97 50 . 498 . 55 7 . . 100 121 88 . . 172 187 439 1135 862 273 69 Knockbacks 34 | . 1 . 1 . . 13 . . . . 5 . . . 6 . . . . . . . . . 7 1 Impact 3 | . 1 . 1 . . . . . . . 1 . . . . . . . . . . . . . . . Kinetic 27 | . . . . . . 10 . . . . 4 . . . 6 . . . . . . . . . 6 1 Secondary 4 | . . . . . . 3 . . . . . . . . . . . . . . . . . . 1 . Self-Inflicted Damage 1303 | . 23 . 28 . . 47 98 . . 86 57 . . . . . . . 1 306 47 . 65 . . 545 Shots 25 | . 1 . 1 . . 2 2 . . 1 2 . . . . . . . 1 3 4 . 7 . . 1 Rammed 16 | . 1 . 5 5 . . . . . . 3 2 . . . . . . . . . . . . . . Targets Rammed 24 | . 1 . 6 7 . . 1 . . 3 3 2 . . . . . . . . 1 . . . . . Kicked 5 | . . . . . . . 1 . . 3 . . . . . . . . . . 1 . . . . . Crushed 3 | . . . 1 2 . . . . . . . . . . . . . . . . . . . . . . Highest Temperature 406 | . 276 379 159 345 318 350 276 85 246 210 268 282 188 118 189 245 300 255 105 406 354 205 244 240 255 7 Average Temperature 83 | . 88 84 49 89 75 101 97 62 96 80 75 113 65 68 76 83 86 106 36 140 69 85 59 92 81 7 Received Heat Transfer 4620 | . 18 391 171 387 327 671 647 4 9 435 184 18 9 . 192 39 261 . 12 . 27 . 469 76 61 212 Effects 8 | . . . . . . 6 1 . . . . . . . . . . 1 . . . . . . . . Energy Bleed 2 | . . . . . . 1 . . . . . . . . . . . 1 . . . . . . . . Interference 6 | . . . . . . 5 1 . . . . . . . . . . . . . . . . . . . Siege Activations 1 | . . . . . . . . . . . 1 . . . . . . . . . . . . . . . Total Turns 17 | . . . . . . . . . . . 17 . . . . . . . . . . . . . . . Longest Duration 17 | . . . . . . . . . . . 17 . . . . . . . . . . . . . . . Martial Activations . | . . . . . . . . . . . . . . . . . . . . . . . . . . . Shielding Activations . | . . . . . . . . . . . . . . . . . . . . . . . . . . . Robots Disrupted 1 | . . . . . . . . . . . . . . . . . . . . . . . 1 . . . Combat Hostiles 1 | . . . . . . . . . . . . . . . . . . . . . . . 1 . . . Robots Corrupted 58 | . 2 . . . . 2 1 6 . . 1 1 . . . 2 13 . . . 6 4 20 . . . Combat Hostiles 51 | . . . . . . 2 1 6 . . 1 . . . . 2 11 . . . 6 3 19 . . . Parts Fried 113 | . 7 . . . 1 2 1 6 . 1 6 . . . . 5 26 . . 1 13 6 36 . . 2 Impact Corruptions 9 | . 6 . . 1 . . . . . . . 2 . . . . . . . . . . . . . . Robots Melted 17 | . . 1 . . . . . . . 4 2 . . . . . 3 . 2 . . 1 4 . . . Combat Hostiles 17 | . . 1 . . . . . . . 4 2 . . . . . 3 . 2 . . 1 4 . . . Parts Melted 60 | . . 3 3 7 3 1 4 . . 16 9 . . . . . 7 . 1 3 . 2 1 . . . Heat Transferred 25104 | . 148 1221 531 4107 37 605 2700 356 750 6092 2246 . . . . 250 1101 . 840 1120 1000 77 1923 . . . Parts Sabotaged 3 | . . . . . . 1 . . . . . . . . . . . . . . . . 2 . . . Parts Stolen . | . . . . . . . . . . . . . . . . . . . . . . . . . . . Parts Stripped . | . . . . . . . . . . . . . . . . . . . . . . . . . . . Power Chain Reactions 16 | . . . 1 . . 1 1 2 . . 1 . . . . 1 2 . . . 2 1 4 . . . Alert | -11 -10 -10 -8 -8 -8 -6 -6 -6 -6 -6 -5 -5 -5 -5 -4 -4 -4 -4 -3 -3 -2 -2 -2 -1 -1 -1 ------- Run | Yrd Mat Sub Mat Sto Rec Fac Ext Cet Arc Hub Fac Upp Upp Zhi Pro Fac Arm Lab Res Tes Res Qua Frg Acc Com Ac0 Maximum Alert Level 5 | . . . . 1 . 3 4 3 2 5 3 . . . . 2 4 . . 1 2 1 5 5 5 . Low Security (%) 53 | 100 100 . 100 66 100 10 . . 32 14 57 . . . . 35 36 . 100 82 74 25 7 . . . Level 1 17 | . . . . 33 . 71 17 . 54 6 5 . . . . 62 19 . . 17 15 74 3 . . . Level 2 7 | . . . . . . 5 60 . 13 4 6 . . . . 2 9 . . . 10 . 15 . . . Level 3 8 | . . . . . . 11 11 100 . 19 30 . . . . . 22 . . . . . 21 . . . Level 4 6 | . . . . . . . 10 . . 48 . . . . . . 12 . . . . . 26 39 . . Level 5 4 | . . . . . . . . . . 6 . . . . . . . . . . . . 25 8 61 . High Security 2 | . . . . . . . . . . . . . . . . . . . . . . . . 51 38 . Max Security . | . . . . . . . . . . . . . . . . . . . . . . . . . . . Peak Influence 7843 | . 162 . 84 300 69 802 1347 928 481 1837 1009 . . . . 407 1278 . 97 255 489 289 2103 2847 7843 . Initial 1821 | . . . . 25 46 261 390 753 327 32 835 . . . . 53 192 . . . 126 274 141 1260 1821 . Average 420 | . 39 . 22 153 14 331 610 847 263 962 322 . . . . 228 509 . 31 95 162 240 1118 1822 3766 . Influence Increases 26545 | . 353 . 296 1121 393 1465 1899 255 284 2316 1256 65 244 . 413 838 1804 . 451 610 723 506 2630 1727 6301 595 Destroy 0b10 Robot/C 12740 | . 220 . 180 560 60 600 920 160 80 640 680 60 180 . 300 300 960 . 80 140 420 120 1740 1020 3320 . Destroy 0b10 Robot/NC 1080 | . 50 . 30 55 215 90 75 10 45 75 50 5 5 . 10 20 40 . 5 50 50 25 60 45 70 . Destroy Leader 1698 | . 38 . 58 154 . 114 76 . . 158 184 . 20 . 40 52 160 . 22 10 84 22 182 182 142 . Allied During Kill 1828 | . . . . 56 4 . 609 59 125 751 . . 39 . 3 . 180 . . 2 . . . . . . Trap Triggered on 0b10 30 | . . . . . . . . . . . . . . . . 30 . . . . . . . . . . Successful Hack 952 | . 18 . 9 20 5 29 29 . . 36 76 . . . . 68 27 . 191 128 34 126 24 120 12 . Select Force Hacks 150 | . . . . 60 90 . . . . . . . . . . . . . . . . . . . . . Disable Machine 1665 | . . . . 105 15 45 30 . 30 345 105 . . . . 105 195 . 30 105 60 90 225 45 30 105 Anti-Garrison Action 150 | . . . . . . . . . . . . . . . . . . . . . . . 150 . . . Destroy Structure 3047 | . 27 . 19 6 4 112 40 26 4 296 146 . . . . 158 122 . 108 130 60 78 234 15 1017 445 Advance Influence 250 | . . . . . . 250 . . . . . . . . . . . . . . . . . . . . Partial Spotted 75 | . . . . . . . . . . . . . . . . 15 . . . . . . . . 15 45 Lose Combat Pursuer 2880 | . . . . 105 . 225 120 . . 15 15 . . . 60 90 120 . 15 45 15 45 15 300 1695 . Influence Decreases 26075 | . 353 . 236 1060 487 694 1350 784 1009 704 1976 883 370 41 327 531 919 1278 451 386 458 743 781 981 1136 8137 Entered New Map 14803 | . . . . 35 75 16 408 594 491 61 870 365 32 41 . 33 201 1278 . . 98 215 111 841 1026 8012 Time Decay 8732 | . 353 . 216 642 382 498 562 170 498 463 314 518 338 . 307 498 648 . 451 246 350 368 660 140 110 . Search Patrol Dispatched 100 | . . . . . . 100 . . . . . . . . . . . . . . . . . . . . Lost Part 420 | . . . 20 40 . 60 20 . . 10 30 . . . 20 . 20 . . 130 10 . 10 . . 50 Lost Ally 808 | . . . . 193 30 20 360 20 20 20 . . . . . . 50 . . 10 . 10 . . . 75 Purge Threat 1212 | . . . . 150 . . . . . 150 762 . . . . . . . . . . 150 . . . . Squads Dispatched 116 | . . . 2 5 . 7 5 . . 9 14 . . . . 2 14 . 6 3 3 5 14 13 14 . Investigation 14 | . . . 1 2 . . 1 . . . . . . . . . 2 . 3 1 1 1 1 1 . . Extermination 26 | . . . . . . 3 . . . 2 2 . . . . 2 5 . . 1 2 3 5 1 . . Reinforcement 32 | . . . 1 1 . 4 2 . . 6 8 . . . . . 3 . 3 1 . 1 . 2 . . Assault 44 | . . . . 2 . . 2 . . 1 4 . . . . . 4 . . . . . 8 9 14 . Garrison . | . . . . . . . . . . . . . . . . . . . . . . . . . . . Intercept . | . . . . . . . . . . . . . . . . . . . . . . . . . . . Searches Triggered 1 | . . . . . . 1 . . . . . . . . . . . . . . . . . . . . Unchained Authorized 4 | . . . . . . . . . . . . . . . . . . . . 1 1 1 . 1 . . Construction Impeded 3 | . . . . . . 1 1 . . . 1 . . . . . . . . . . . . . . . Haulers Reinforced 3 | . . . . . . . . . . 2 . . . . . . . . 1 . . . . . . . Active Scanning Responses . | . . . . . . . . . . . . . . . . . . . . . . . . . . . Cargo Convoy Interrupts 2 | . . . . . . 1 . . . . 1 . . . . . . . . . . . . . . . Stealth | -11 -10 -10 -8 -8 -8 -6 -6 -6 -6 -6 -5 -5 -5 -5 -4 -4 -4 -4 -3 -3 -2 -2 -2 -1 -1 -1 --------- Run | Yrd Mat Sub Mat Sto Rec Fac Ext Cet Arc Hub Fac Upp Upp Zhi Pro Fac Arm Lab Res Tes Res Qua Frg Acc Com Ac0 Distress Signals 63 | . 1 . 1 3 3 . 5 2 . 4 6 . . . . 1 2 . 8 . 2 1 2 4 18 . Communications Jammed 28 | . . . . . . . . . . . . . . . . . 2 . 24 2 . . . . . . Distress Signals 28 | . . . . . . . . . . . . . . . . . 2 . 24 2 . . . . . . Times Spotted 870 | . 20 10 17 35 10 59 57 9 55 47 57 3 10 . 18 18 56 . 13 16 25 13 101 81 97 43 Peak Tracking Total 83 | . 7 3 6 8 2 12 12 5 2 7 8 3 5 . 5 6 6 . 6 3 6 4 7 18 83 7 Tactical Retreats 72 | . . . . 6 . 7 8 . . 1 1 . . . 3 4 5 . 1 2 1 2 1 9 17 4 Traps | -11 -10 -10 -8 -8 -8 -6 -6 -6 -6 -6 -5 -5 -5 -5 -4 -4 -4 -4 -3 -3 -2 -2 -2 -1 -1 -1 ------- Run | Yrd Mat Sub Mat Sto Rec Fac Ext Cet Arc Hub Fac Upp Upp Zhi Pro Fac Arm Lab Res Tes Res Qua Frg Acc Com Ac0 Traps Triggered 35 | . 1 . . . . 3 5 . . 2 . . . . . 1 4 . 1 . 1 1 14 1 1 . Indirectly 1 | . . . . . . . . . . . . . . . . . . . . . . . 1 . . . Trap Hack Attempts 162 | . . . . 45 . . 12 . . . 76 . . . . 29 . . . . . . . . . . Triggered . | . . . . . . . . . . . . . . . . . . . . . . . . . . . Disarmed 9 | . . . . 1 . . 1 . . 6 . . . . . 1 . . . . . . . . . . Reprogrammed 12 | . . . . 3 . . . . . . 5 . . . . 4 . . . . . . . . . . Reused 8 | . . . . . . . . . . . . . . . . 3 . . . 5 . . . . . . Traps Extracted 8 | . . . . 3 . . . . . . 5 . . . . . . . . . . . . . . . Installed 20 | . . . . . . . . . . . . 11 4 . . . . . . 5 . . . . . . Triggered 3 | . . . . . . . . . . . . . . . . 3 . . . . . . . . . . Most Traps Carried 6 | . . . . 3 3 3 3 . . . 5 5 6 5 5 5 5 5 5 5 . . . . . . Machines | -11 -10 -10 -8 -8 -8 -6 -6 -6 -6 -6 -5 -5 -5 -5 -4 -4 -4 -4 -3 -3 -2 -2 -2 -1 -1 -1 ---------- Run | Yrd Mat Sub Mat Sto Rec Fac Ext Cet Arc Hub Fac Upp Upp Zhi Pro Fac Arm Lab Res Tes Res Qua Frg Acc Com Ac0 Machines Disabled 123 | . . . . 7 1 3 2 . 2 23 7 . 2 . . 10 14 3 2 7 4 7 17 3 2 7 Max in Single Turn 16 | . . . . 1 1 1 1 . 1 16 2 . 1 . . 5 1 1 1 2 1 1 1 1 1 1 Garrison Access 5 | . . . . . . . . . . . 1 . . . . 1 . . 1 1 . . 1 . . . Network Hub 2 | . . . . . . . . . . 2 . . . . . . . . . . . . . . . . Machines Repaired . | . . . . . . . . . . . . . . . . . . . . . . . . . . . Machines Dismantled 2 | . . . . 2 . . . . . . . . . . . . . . . . . . . . . . Machines Sabotaged . | . . . . . . . . . . . . . . . . . . . . . . . . . . . Overloaded Fab Kills . | . . . . . . . . . . . . . . . . . . . . . . . . . . . Hacking | -11 -10 -10 -8 -8 -8 -6 -6 -6 -6 -6 -5 -5 -5 -5 -4 -4 -4 -4 -3 -3 -2 -2 -2 -1 -1 -1 --------- Run | Yrd Mat Sub Mat Sto Rec Fac Ext Cet Arc Hub Fac Upp Upp Zhi Pro Fac Arm Lab Res Tes Res Qua Frg Acc Com Ac0 Machines Accessed 129 | . 5 1 3 14 11 11 7 . . 6 7 1 3 4 . 6 5 . 10 9 5 9 5 4 2 1 Terminals 78 | . 5 . 1 11 6 8 6 . . 6 5 . . . . 2 3 . 3 6 3 6 3 2 2 . Fabricators 8 | . . . . . . 1 . . . . . . . . . . 2 . 3 . 1 . . 1 . . Repair Stations 7 | . . . . 1 . 1 . . . . 1 . . . . 2 . . 1 1 . . . . . . Recycling Units 7 | . . . . 2 4 . 1 . . . . . . . . . . . . . . . . . . . Scanalyzers 9 | . . . 1 . . 1 . . . . . . . . . 1 . . 2 1 . 2 1 . . . Garrison Access 9 | . . . 1 . . . . . . . 1 . . . . 1 . . 1 1 1 1 1 1 . . Total Hacks 516 | . 19 3 13 52 38 37 15 . . 18 69 1 6 17 . 23 20 . 74 24 11 38 14 17 6 1 Successful 270 | . 10 3 8 26 26 16 6 . . 8 47 1 6 17 . 15 6 . 24 16 2 17 7 6 2 1 Failed 242 | . 8 . 4 26 12 20 9 . . 10 21 . . . . 8 14 . 50 8 9 21 7 11 4 . Catastrophic 50 | . . . 1 6 1 5 1 . . 4 2 . . . . 2 4 . 9 2 4 4 3 2 . . Database Lockouts 4 | . 1 . 1 . . 1 . . . . 1 . . . . . . . . . . . . . . . Manual 261 | . 15 . 5 30 20 31 7 1 . 16 34 . . . . 3 3 3 32 19 6 12 10 11 3 . Terminals 341 | . 19 . 5 41 21 31 13 . . 18 54 . . . . 5 14 . 44 21 8 21 8 12 6 . Fabricators 25 | . . . . . . 4 . . . . . . . . . . 6 . 11 . 2 . . 2 . . Repair Stations 34 | . . . . 4 . 1 . . . . 13 . . . . 12 . . 3 1 . . . . . . Recycling Units 23 | . . . . 7 14 . 2 . . . . . . . . . . . . . . . . . . . Scanalyzers 42 | . . . 6 . . 1 . . . . . . . . . 5 . . 14 1 . 12 3 . . . Garrison Access 20 | . . . 2 . . . . . . . 2 . . . . 1 . . 2 1 1 5 3 3 . . Terminal Hacks 100 | . 3 3 . 9 7 2 4 . . 3 19 1 6 17 . 2 2 . 3 3 2 6 5 1 1 1 Record 14 | . . 3 . . 1 . . . . . . . 4 5 . . . . . . . . . . . 1 Part Schematic 13 | . . . . 3 2 . . . . . 3 . . 4 . . . . . 1 . . . . . . Robot Schematic 1 | . . . . 1 . . . . . . . . . . . . . . . . . . . . . . Robot Analysis 8 | . 1 . . . 1 . . . . . . . . 4 . . . . 1 . . . . 1 . . Prototype ID Bank 7 | . . . . . 1 . . . . . 1 . . 4 . . . . . . . 1 . . . . Open Door 10 | . . . . 2 . . 3 . . . . 1 2 . . . 1 . . . . . . . 1 . Level Access Points 3 | . . . . . . . . . . . . . . . . . . . . 1 1 . 1 . . . Branch Access Points 2 | . . . . . . . . . . . 1 . . . . . . . . . 1 . . . . . Machine Index 1 | . . . . . . . . . . . . . . . . . . . 1 . . . . . . . Terminal Index 2 | . 1 . . . . . . . . . . . . . . . . . . . . 1 . . . . Fabricator Index 1 | . . . . . . . . . . . . . . . . . 1 . . . . . . . . . Scanalyzer Index 1 | . . . . . . . . . . . . . . . . . . . . . . 1 . . . . Alert Level 6 | . . . . . . . . . . . 2 . . . . 1 . . . 1 . 1 1 . . . Unreport Threat 9 | . . . . 1 . . . . . 1 6 . . . . . . . . . . 1 . . . . Locate Traps 7 | . . . . 1 . 2 1 . . 1 1 . . . . . . . 1 . . . . . . . Disarm Traps 1 | . . . . . . . . . . 1 . . . . . . . . . . . . . . . . Maintenance Status 1 | . . . . . . . . . . . 1 . . . . . . . . . . . . . . . Patrol Status 2 | . . . . . . . . . . . 1 . . . . . . . . . . . 1 . . . Recall Extermination 2 | . . . . . . . . . . . 1 . . . . . . . . . . 1 . . . . Hauler Manifests 2 | . . . . 1 . . . . . . 1 . . . . . . . . . . . . . . . Registered Components 1 | . . . . . . . . . . . 1 . . . . . . . . . . . . . . . Zone Layout 3 | . 1 . . . . . . . . . . . . . . 1 . . . . . . 1 . . . Proto ID Catalog 1 | . . . . . . . . . . . . . . . . . . . . . . . 1 . . . Release Object 2 | . . . . . 2 . . . . . . . . . . . . . . . . . . . . . Fabricator Hacks 10 | . . . . . . 1 . . . . . . . . . . 4 . 4 . . . . 1 . . Network Status 4 | . . . . . . 1 . . . . . . . . . . 1 . 1 . . . . 1 . . Load Schematic 2 | . . . . . . . . . . . . . . . . . 1 . 1 . . . . . . . Build 4 | . . . . . . . . . . . . . . . . . 2 . 2 . . . . . . . Repair Station Hacks 23 | . . . . 3 . . . . . . 10 . . . . 8 . . 2 . . . . . . . Scan Component 12 | . . . . 2 . . . . . . 5 . . . . 4 . . 1 . . . . . . . Repair 11 | . . . . 1 . . . . . . 5 . . . . 4 . . 1 . . . . . . . Recycling Unit Hacks 10 | . . . . 2 8 . . . . . . . . . . . . . . . . . . . . . Process 1 | . . . . . 1 . . . . . . . . . . . . . . . . . . . . . Retrieve Matter 2 | . . . . . 2 . . . . . . . . . . . . . . . . . . . . . Retrieve Components 7 | . . . . 2 5 . . . . . . . . . . . . . . . . . . . . . Scanalyzer 22 | . . . 5 . . 1 . . . . . . . . . 4 . . 6 1 . 5 . . . . Insert Component 7 | . . . 2 . . . . . . . . . . . . 2 . . 1 . . 2 . . . . Analyze 3 | . . . 1 . . . . . . . . . . . . 1 . . . . . 1 . . . . Retrieve Study 12 | . . . 2 . . 1 . . . . . . . . . 1 . . 5 1 . 2 . . . . Garrison Access Hacks 4 | . . . . . . . . . . . 1 . . . . 1 . . 1 1 . . . . . . Seal Access 4 | . . . . . . . . . . . 1 . . . . 1 . . 1 1 . . . . . . Unauthorized Hacks 101 | . 7 . 3 12 11 12 2 . . 5 17 . . . . . . . 8 11 . 6 2 4 1 . Terminals 88 | . 7 . 3 10 7 10 2 . . 5 16 . . . . . . . 6 10 . 5 2 4 1 . Track 8 | . . . . 1 . . . . . 3 2 . . . . . . . . . . 1 . . 1 . Assimilate 10 | . . . . . . . . . . 1 3 . . . . . . . . 4 . 2 . . . . Botnet 23 | . 2 . 1 3 2 4 . . . . 4 . . . . . . . 2 1 . 1 1 2 . . Operators 7 | . . . 1 1 . . . . . . 2 . . . . . . . 1 . . 1 1 . . . Skim 40 | . 5 . 1 5 5 6 2 . . 1 5 . . . . . . . 3 5 . . . 2 . . Fabricators 3 | . . . . . . 1 . . . . . . . . . . . . 2 . . . . . . . Liberate 1 | . . . . . . . . . . . . . . . . . . . 1 . . . . . . . Haulers 2 | . . . . . . 1 . . . . . . . . . . . . 1 . . . . . . . Repair Stations 2 | . . . . . . 1 . . . . . . . . . . . . . 1 . . . . . . Mechanics 1 | . . . . . . 1 . . . . . . . . . . . . . . . . . . . . Patch 1 | . . . . . . . . . . . . . . . . . . . . 1 . . . . . . Recycling Units 6 | . . . . 2 4 . . . . . . . . . . . . . . . . . . . . . Mask 1 | . . . . . 1 . . . . . . . . . . . . . . . . . . . . . Tunnel 5 | . . . . 2 3 . . . . . . . . . . . . . . . . . . . . . Scanalyzers 1 | . . . . . . . . . . . . . . . . . . . . . . 1 . . . . Researchers 1 | . . . . . . . . . . . . . . . . . . . . . . 1 . . . . Garrison Access 1 | . . . . . . . . . . . 1 . . . . . . . . . . . . . . . Watchers 1 | . . . . . . . . . . . 1 . . . . . . . . . . . . . . . Data Cores Recovered 3 | . . . . . . . . . . 1 . . . . . . . . . 1 . . . . 1 . Used . | . . . . . . . . . . . . . . . . . . . . . . . . . . . Hacking Detections 86 | . 5 . 3 11 6 9 4 . . 6 3 . . . . 3 4 . 6 5 5 8 4 3 1 . Full Trace Events 8 | . . . 1 . 2 . . . . . . . . . . . 1 . 1 . 1 1 1 . . . Feedback Events . | . . . . . . . . . . . . . . . . . . . . . . . . . . . Feedback Blocked . | . . . . . . . . . . . . . . . . . . . . . . . . . . . Robot Schematics Acquired 6 | . . . . 1 . . . . . . . . . . . . . . . 1 . 1 3 . . . Robots Built . | . . . . . . . . . . . . . . . . . . . . . . . . . . . Authchips . | . . . . . . . . . . . . . . . . . . . . . . . . . . . Time 169 | . . . . . . . . . . . . . . . . . 169 . . . . . . . . . Total Robot Build Rating . | . . . . . . . . . . . . . . . . . . . . . . . . . . . Part Schematics Acquired 29 | . . . 1 3 2 . . . . . 3 . . 4 . 1 . . . 6 . 5 4 . . . Parts Built 2 | . . . . . . . . . . . . . . . . . . . 2 . . . . . . . Authchips . | . . . . . . . . . . . . . . . . . . . . . . . . . . . Time 283 | . . . . . . . . . . . . . . . . . 187 . 96 . . . . . . . Total Part Build Rating 14 | . . . . . . . . . . . . . . . . . . . 14 . . . . . . . Part Studies Acquired 12 | . . . 2 . . 1 . . . . . . . . . 1 . . 5 1 . 2 . . . . Parts Repaired 11 | . . . . 1 . . . . . . 5 . . . . 4 . . 1 . . . . . . . Time 713 | . . . . 32 . . . . . . 513 . . . . 144 . . 24 . . . . . . . Parts Recycled . | . . . . . . . . . . . . . . . . . . . . . . . . . . . Recycled Matter 181 | . . . . . 181 . . . . . . . . . . . . . . . . . . . . . Retrieved Matter 385 | . . . . . 385 . . . . . . . . . . . . . . . . . . . . . Retrieved Components 34 | . . . . 19 15 . . . . . . . . . . . . . . . . . . . . . Parts Scanalyzed 3 | . . . 1 . . . . . . . . . . . . 1 . . . . . 1 . . . . Part Schematics Acquired 2 | . . . 1 . . . . . . . . . . . . 1 . . . . . . . . . . Parts Damaged . | . . . . . . . . . . . . . . . . . . . . . . . . . . . Bothacking | -11 -10 -10 -8 -8 -8 -6 -6 -6 -6 -6 -5 -5 -5 -5 -4 -4 -4 -4 -3 -3 -2 -2 -2 -1 -1 -1 ------------ Run | Yrd Mat Sub Mat Sto Rec Fac Ext Cet Arc Hub Fac Upp Upp Zhi Pro Fac Arm Lab Res Tes Res Qua Frg Acc Com Ac0 Used RIF Installer . | . . . . . . . . . . . . . . . . . . . . . . . . . . . Robots Hacked 5 | . . . . 1 . . . . 2 . 2 . . . . . . . . . . . . . . . Non-combat 4 | . . . . 1 . . . . 1 . 2 . . . . . . . . . . . . . . . Combat 1 | . . . . . . . . . 1 . . . . . . . . . . . . . . . . . Robot Hacks Applied 6 | . . . . 1 . . . . 2 . 3 . . . . . . . . . . . . . . . parse_system 2 | . . . . 1 . . . . 1 . . . . . . . . . . . . . . . . . find_chute 1 | . . . . . . . . . . . 1 . . . . . . . . . . . . . . . find_fabricator 1 | . . . . . . . . . . . 1 . . . . . . . . . . . . . . . find_dsf 1 | . . . . . . . . . . . 1 . . . . . . . . . . . . . . . check_alert 1 | . . . . . . . . . 1 . . . . . . . . . . . . . . . . . Relay Couplers Released 4 | . . . . . . . . . . . . . . . . . . . . . . . 4 . . . Programmers 4 | . . . . . . . . . . . . . . . . . . . . . . . 4 . . . Fabnet Peak Effective % . | . . . . . . . . . . . . . . . . . . . . . . . . . . . Robots Rewired 35 | . . . . . 3 . 23 . . . . . 4 . . . 5 . . . . . . . . . Allies Hacked 1 | . . . . . . . . . . . . . . . . . 1 . . . . . . . . . Hacks Repelled . | . . . . . . . . . . . . . . . . . . . . . . . . . . . Allies | -11 -10 -10 -8 -8 -8 -6 -6 -6 -6 -6 -5 -5 -5 -5 -4 -4 -4 -4 -3 -3 -2 -2 -2 -1 -1 -1 -------- Run | Yrd Mat Sub Mat Sto Rec Fac Ext Cet Arc Hub Fac Upp Upp Zhi Pro Fac Arm Lab Res Tes Res Qua Frg Acc Com Ac0 Total Allies 60 | . . . . 12 3 . 27 5 . . 1 . 4 . . . 5 . . 2 . 1 . . . . Largest Group 17 | . . . . 11 3 3 17 7 6 5 1 . 4 1 1 . 4 . . 2 . 1 . . . . Highest-Rated Group 670 | . . . . 219 64 64 490 670 511 480 10 . 119 30 30 . 192 . . 90 . 45 . . . . Highest-Rated Ally 159 | . . . . 31 31 27 159 159 96 96 10 . 30 30 30 . 64 . . 45 . 45 . . . . Total Orders 51 | . . . . 9 . . 5 1 2 9 6 . . . . . 3 . . . . 1 . . 2 13 STAY 17 | . . . . 3 . . 3 1 1 6 . . . . . . 2 . . . . 1 . . . . FOLLOW 9 | . . . . 2 . . 2 . 1 3 . . . . . . 1 . . . . . . . . . EXPLORE 13 | . . . . 3 . . . . . . 4 . . . . . . . . . . . . . 1 5 RETURN 12 | . . . . 1 . . . . . . 2 . . . . . . . . . . . . . 1 8 Ally Attacks 608 | . . . . 30 21 . 227 19 18 72 . . 5 . 1 . 32 . . . . . . . 2 181 Total Damage 20369 | . . . . 404 320 . 3931 717 709 3200 . . 94 . . . 1303 . . . . . . . 46 9645 Kills 84 | . . . . 3 2 . 24 1 4 22 . . 3 . . . 7 . . . . . . . 1 17 Allies Corrupted 6 | . . . . 1 . . . . . . . . . . . . 1 . . . . 1 . . . 3 Allies Melted . | . . . . . . . . . . . . . . . . . . . . . . . . . . . Intel | -11 -10 -10 -8 -8 -8 -6 -6 -6 -6 -6 -5 -5 -5 -5 -4 -4 -4 -4 -3 -3 -2 -2 -2 -1 -1 -1 ------- Run | Yrd Mat Sub Mat Sto Rec Fac Ext Cet Arc Hub Fac Upp Upp Zhi Pro Fac Arm Lab Res Tes Res Qua Frg Acc Com Ac0 Active Infowar (turns) 18180 | . . 531 . 273 381 1259 852 . 217 636 1329 1058 1470 77 319 874 2269 458 1723 582 667 838 1662 231 106 368 Optics 2623 | . . 531 . . . 1259 787 . . . 46 . . . . . . . . . . . . . . . Sensors 6895 | . . . . . . . . . . . . . . . . 630 1882 194 1677 456 50 701 1305 . . . IFF 11 | . . . . . . . 11 . . . . . . . . . . . . . . . . . . . Terrain 9935 | . . . . . . . 65 . 217 403 691 1058 1470 77 319 339 840 458 1631 476 667 547 542 135 . . Structural 613 | . . . . . . . . . . . . . . . . 2 . . . . 130 3 . 110 . 368 Seismic 1845 | . . . . 273 381 108 . . . 233 850 . . . . . . . . . . . . . . . Machine Analysis 80 | . . . . . . . . . . . . . . . . 80 . . . . . . . . . . Cloaking 2800 | . . . . . . . . . . . . . . . . . . 153 1718 472 . . 215 136 106 . Jamming 3736 | . . . . . . . . . . . . . . . . 138 835 458 1723 582 . . . . . . ECM 1 | . . . . . . . . . . . . . . . . . . . . . . . . 1 . . Robot Analysis Total 8 | . 1 . . . 1 . . . . . . . . 4 . . . . 1 . . . . 1 . . Derelict Logs Recovered 7 | . . 2 . . . . . . . . . 2 1 . 2 . . . . . . . . . . . Drone Launches 59 | . . . . 6 . . . . . . 2 . . . . . . . . . . . . . 12 39 Drone Recoveries 48 | . . . . 2 . . . . . . 2 . . . . . . . . . . . . . 12 32 Exploration | -11 -10 -10 -8 -8 -8 -6 -6 -6 -6 -6 -5 -5 -5 -5 -4 -4 -4 -4 -3 -3 -2 -2 -2 -1 -1 -1 ------------- Run | Yrd Mat Sub Mat Sto Rec Fac Ext Cet Arc Hub Fac Upp Upp Zhi Pro Fac Arm Lab Res Tes Res Qua Frg Acc Com Ac0 Turns Passed 37225 | 80 1321 1254 723 2360 6006 1338 1669 354 1324 1190 1856 1432 1905 262 1255 1328 2375 458 1723 656 798 842 2497 606 946 667 Spaces Moved 22180 | 46 742 672 307 1014 2462 1194 1001 182 691 624 735 743 1006 151 621 648 966 196 1150 467 569 589 2320 976 1119 989 Core 11 | 11 . . . . . . . . . . . . . . . . . . . . . . . . . . Treads 8977 | 35 742 672 276 1014 1482 . 376 . 1 . 123 743 1006 151 406 498 966 196 287 . 3 . . . . . Legs 6480 | . . . . . . . 575 182 690 624 612 . . . 215 150 . . 863 467 566 589 947 . . . Wheels 700 | . . . 31 . 432 237 . . . . . . . . . . . . . . . . . . . . Hover 5455 | . . . . . 488 510 . . . . . . . . . . . . . . . . 1373 976 1119 989 Flight 557 | . . . . . 60 447 50 . . . . . . . . . . . . . . . . . . . Fastest Speed 33 | 50 160 160 125 160 73 73 73 99 78 134 149 166 166 166 151 134 134 134 102 101 101 102 36 36 33 33 Average Speed 112 | 152 160 160 182 160 145 73 94 99 109 134 152 166 166 166 164 137 134 137 122 102 101 102 60 37 33 33 Slowest Speed 280 | 200 160 160 280 160 200 78 99 99 149 149 166 166 166 166 213 151 149 149 188 171 225 105 171 99 36 98 Overloaded Moves . | . . . . . . . . . . . . . . . . . . . . . . . . . . . Propulsion Burnouts . | . . . . . . . . . . . . . . . . . . . . . . . . . . . Robots Hopped 9 | . . . . . . 9 . . . . . . . . . . . . . . . . . . . . Potential Cave-ins 3 | . . . . . . . . . . . . . . . . . 1 . . . . . 2 . . . Cave-ins Triggered . | . . . . . . . . . . . . . . . . . . . . . . . . . . . Teleports 4 | . . . . . . . . . . . . . . . . . . . . . . 1 1 . 1 1 Exploration Rate (%) 55 | 5 89 45 23 96 99 29 85 55 93 47 24 87 92 61 62 15 48 78 47 56 20 64 35 33 34 65 Regions Visited 26 Branch Regions 18 Pre-discovered Areas 22 | . . . . 6 4 4 . . . . 3 2 . 3 . . . . . . . . . . . . Known Exits Taken 17 | . 1 . 1 . 1 1 . . . 1 1 1 1 . 1 1 1 1 1 1 1 1 1 . . . Unknown Exits Taken 9 | 1 . 1 . 1 . . 1 1 1 . . . . 1 . . . . . . . . . 1 1 . Scrap Searched 11 | . . 2 . . . . . . . . . 3 5 . 1 . . . . . . . . . . . Spaces Dug 713 | . 4 . . 3 2 14 33 . . 2 11 1 5 . . 4 21 . 29 14 8 14 23 5 252 268 Terrain Destroyed 2843 | . 26 2 25 3 3 123 39 24 3 438 98 19 23 1 102 97 85 . 55 65 26 68 58 5 502 953 Melee 90 | . 4 . . 3 2 2 1 . . 2 10 1 3 . . 4 3 . 17 2 6 9 2 5 13 1 Projectile 934 | . . 2 . . 1 33 1 2 3 . 27 18 20 1 48 1 34 . 3 10 8 35 25 . 244 418 AOE 1162 | . 22 . 25 . . 88 37 22 . 436 61 . . . 54 92 47 . 35 53 12 . 13 . . 165 Terrain Rammed . | . . . . . . . . . . . . . . . . . . . . . . . . . . . Walls Destroyed . | . . . . . . . . . . . . . . . . . . . . . . . . . . . Machines Disabled . | . . . . . . . . . . . . . . . . . . . . . . . . . . . Actions | -11 -10 -10 -8 -8 -8 -6 -6 -6 -6 -6 -5 -5 -5 -5 -4 -4 -4 -4 -3 -3 -2 -2 -2 -1 -1 -1 --------- Run | Yrd Mat Sub Mat Sto Rec Fac Ext Cet Arc Hub Fac Upp Upp Zhi Pro Fac Arm Lab Res Tes Res Qua Frg Acc Com Ac0 Total 32010 | 53 816 776 419 1559 4797 1486 1557 319 1186 845 1308 919 1201 164 784 1033 1864 386 1404 597 732 763 3198 1130 1537 1177 Wait 5626 | . 6 14 27 283 2150 86 196 68 397 129 317 141 90 1 101 219 489 143 148 36 34 53 309 17 168 4 Move 22137 | 45 741 671 306 1013 2461 1177 1000 181 690 624 734 742 1005 150 620 647 965 195 1149 466 567 588 2319 975 1118 988 Hop 7 | . . . . . . 7 . . . . . . . . . . . . . . . . . . . . Pick Up 314 | 2 17 11 9 15 8 14 20 8 4 . 22 3 6 3 6 17 17 7 7 10 7 16 48 8 17 12 Fast Attach 210 | 6 2 1 15 19 2 8 4 5 8 . 5 1 1 2 2 7 12 6 18 7 12 8 41 2 13 3 Attach 151 | . . 2 1 4 2 10 8 1 4 . 16 1 1 1 3 10 5 6 6 11 10 6 19 6 10 8 Detach 137 | . . . 6 6 5 5 8 1 7 . 14 . 1 2 2 11 4 6 5 5 8 6 17 4 11 3 Swap 529 | . 8 12 8 31 12 15 35 8 1 25 24 8 13 1 3 21 84 1 18 2 16 23 95 24 22 19 Drop 407 | . 6 15 16 31 18 12 25 14 9 2 11 3 8 4 7 10 30 11 18 12 13 19 75 6 23 9 Fire 1129 | . 17 50 24 69 36 113 57 23 48 59 69 6 12 . 36 37 207 11 10 28 43 16 95 3 38 22 Melee 773 | . 18 . . 13 64 26 56 10 18 2 15 1 5 . 2 24 8 . 24 15 19 26 127 85 108 107 Ram . | . . . . . . . . . . . . . . . . . . . . . . . . . . . Kick 4 | . . . . . . . 1 . . 2 . . . . . . . . . . 1 . . . . . Crush 19 | . 1 . 6 7 . . . . . . 3 2 . . . . . . . . . . . . . . Escape Stasis 82 | . . . . . . 11 9 . . . . . . . . . . . . . 1 . 53 . 8 . Rewire 260 | . . . . . 35 . 125 . . . . . 55 . 2 . 43 . . . . . . . . . Trap 182 | . . . . 45 . . 12 . . . 76 11 4 . . 29 . . . 5 . . . . . . Miscellaneous 43 | . . . 1 23 4 2 1 . . 2 2 . . . . 1 . . 1 . 1 2 . . 1 2 Route ------- -11/Scrapyard -10/Materials (discovered 5 exits: *Mat x3 / [*Min] / *Sub) -10/Subcaves -8/Materials -8/Storage (discovered 2 exits: [*Fac] / *Rec) -8/Recycling -6/Factory (discovered 5 exits: Fac x4 / *Ext) -6/Extension (discovered 3 exits: *Fac x2 / *Cet) -6/Cetus (discovered 2 exits: *Fac / [*Arc]) -6/Archives (discovered 3 exits: *Fac / *Hub x2) -6/Hub_04(d) (discovered 2 exits: *Fac x2) -5/Factory (discovered 2 exits: *Upp x2) -5/Upper Caves -5/Upper Caves (discovered 2 exits: *Fac / *Zhi) -5/Zhirov -4/Proximity Caves -4/Factory (discovered 4 exits: *Res x2 / [*Upp] / *Arm) -4/Armory (discovered 2 exits: Res / *Lab) -4/Lab -3/Research (discovered 3 exits: Res / *Tes x2) -3/Testing -2/Research (discovered 5 exits: Acc x3 / *Qua x2) -2/Quarantine (discovered 2 exits: [*Sec] / *Frg) -2/Protoforge -1/Access -1/Command (discovered 3 exits: [*Sur x2] / *Ac0) -1/Access_0 0b11 Command History --------- Turn | Location | Event 14 | -11/Scrapyard | Discovered new exit (range 16) 81 | -11/Scrapyard | Entered Materials 219 | -10/Materials | Discovered new exit (range 6) 299 | -10/Materials | Discovered new exit (range 14) 302 | -10/Materials | Build established: Mutant 812 | -10/Materials | Central database locked down 842 | -10/Materials | Discovered new exit (range 14) 874 | -10/Materials | Learned Storage trap positions 925 | -10/Materials | Identified exit to Materials 925 | -10/Materials | Identified exit to Subcaves 1010 | -10/Materials | Learned Materials stockpile data 1020 | -10/Materials | Loaded intel: 19 trap records 1032 | -10/Materials | Learned Storage trap positions 1080 | -10/Materials | Learned Storage security intel 1402 | -10/Materials | Entered Subcaves 1538 | -10/Subcaves | Disturbed a concealed Subdweller 1633 | -10/Subcaves | A Subdweller sparked back to life 1633 | -10/Subcaves | A Subdweller sparked back to life 1633 | -10/Subcaves | A Subdweller sparked back to life 1676 | -10/Subcaves | Found Prototype Protection 1842 | -10/Subcaves | Learned 2 Materials zone layouts 1885 | -10/Subcaves | Core integrity fell below 50% 1992 | -10/Subcaves | Discovered new exit (range 12) 2202 | -10/Subcaves | Learned 2 Materials zone layouts 2479 | -10/Subcaves | Visited Clippyterm 2484 | -10/Subcaves | Learned Factory stockpile data 2656 | -10/Subcaves | Entered Materials 2656 | -8/Materials | Evolved 4 slots: Propulsion x2, Utility x1, Weapon x1 2657 | -8/Materials | Identified exit to Storage 2957 | -8/Materials | Central database locked down 2957 | -8/Materials | Identified Gun Armor 3220 | -8/Materials | Build established: Tank 3379 | -8/Materials | Entered Storage 3380 | -8/Storage | Loaded intel: 18 trap records 3573 | -8/Storage | Learned location of Armory (-4) 3831 | -8/Storage | Build established: Scavenger-Gunner 3921 | -8/Storage | Lost 4 allies 4217 | -8/Storage | Discovered new exit (range 5) 4356 | -8/Storage | Lost 4 parts (1p1u2w) 4781 | -8/Storage | Assisted by bots powering up and referring to "LRC-V3" 4885 | -8/Storage | Learned 4 Factory zone layouts 4887 | -8/Storage | Repaired Imp. Treads 4923 | -8/Storage | Learned location of 1 exit from Recycling 4953 | -8/Storage | Learned location of 1 exit from Lower Caves 4973 | -8/Storage | Learned location of Zion (-7) 5003 | -8/Storage | Learned location of Lower Caves (-6) 5042 | -8/Storage | Learned location of 2 exits from Factory 5084 | -8/Storage | Build established: Commander-Gunner 5497 | -8/Storage | Met a pair of Derelict thieves 5729 | -8/Storage | Used back door to open Recycling access 5729 | -8/Storage | Discovered new exit (range 3) 5739 | -8/Storage | Entered Recycling 5739 | -8/Recycling | Accompanied by 2 allies 5740 | -8/Recycling | Identified exit to Factory 6362 | -8/Recycling | Build established: Tank 6559 | -8/Recycling | Learned Factory terminal intel 6604 | -8/Recycling | Entered Scraplab 6630 | -8/Recycling | Learned 8 Factory zone layouts 6740 | -8/Recycling | Learned location of 2 exits from Factory 6781 | -8/Recycling | Learned location of 1 exit from Lower Caves 6832 | -8/Recycling | Learned location of 2 exits from Lower Caves 6964 | -8/Recycling | Learned Storage stockpile data 7234 | -8/Recycling | Build established: Scavenger-Mutant 9210 | -8/Recycling | Found Prototype Device 9210 | -8/Recycling | Identified Scrap Engine 9736 | -8/Recycling | Build established: Construct 11745 | -8/Recycling | Entered Factory 11745 | -6/Factory | Accompanied by 3 allies 11745 | -6/Factory | Evolved 4 slots: Propulsion x1, Utility x3 11746 | -6/Factory | Identified exit to Factory 11746 | -6/Factory | Identified exit to Extension 11749 | -6/Factory | Loaded intel: 28 terminal locations 12095 | -6/Factory | Search patrols dispatched 12211 | -6/Factory | Central database locked down 12479 | -6/Factory | Build established: Hacker-Construct 12815 | -6/Factory | Learned location of Hub_04(d) (-6) 12848 | -6/Factory | Learned location of 1 exit from Upper Caves 12885 | -6/Factory | Learned location of Warlord (-4) 12913 | -6/Factory | Cargo convoy interrupted 12929 | -6/Factory | Learned location of 2 exits from Proximity Caves 12952 | -6/Factory | Build established: Construct 12964 | -6/Factory | Found PL-3XN's Ring of Power 12974 | -6/Factory | Destroyed 11 combat bots 12984 | -6/Factory | Found Prototype Processor 12984 | -6/Factory | Identified Exp. Terrain Scan Processor 13083 | -6/Factory | Entered Extension 13583 | -6/Extension | Spotted B-75 Beast 13843 | -6/Extension | Rescued a captive Derelict 13951 | -6/Extension | Build established: Commander-Construct 14056 | -6/Extension | Allies destroyed B-75 Beast 14065 | -6/Extension | Spotted B-75 Beast 14073 | -6/Extension | Allies destroyed B-75 Beast 14108 | -6/Extension | Disrupted transfer network 14156 | -6/Extension | Rescued a captive Derelict 14423 | -6/Extension | Lost 3 allies 14483 | -6/Extension | First assault squad dispatched 14511 | -6/Extension | Rescued a captive Derelict 14529 | -6/Extension | Rescued a captive Derelict 14585 | -6/Extension | Core integrity fell below 50% 14604 | -6/Extension | Lost 12 allies 14609 | -6/Extension | Destroyed 8 combat bots 14657 | -6/Extension | Rescued A7 14723 | -6/Extension | Discovered exit to Factory (range 10) 14724 | -6/Extension | Discovered new exit (range 6) 14752 | -6/Extension | Entered Cetus 14752 | -6/Cetus | Accompanied by 3 allies (A7) 14757 | -6/Cetus | Acquired a Cetus Manufacturing Module code from A7 14771 | -6/Cetus | Spotted Cetus Guard 14772 | -6/Cetus | Spotted Cetus Guard 14773 | -6/Cetus | Spotted Cetus Guard 14775 | -6/Cetus | Spotted Cetus Guard 14779 | -6/Cetus | Destroyed Cetus Guard 14781 | -6/Cetus | Destroyed Cetus Guard 14782 | -6/Cetus | Allies destroyed Cetus Guard 14786 | -6/Cetus | Destroyed Cetus Guard 14838 | -6/Cetus | Started Cetus Manufacturing Module 14852 | -6/Cetus | Discovered new exit (range 15) 14863 | -6/Cetus | Manufactured an Enhanced Grunt 14871 | -6/Cetus | Spotted Cetus Guard 14872 | -6/Cetus | Spotted Cetus Guard 14875 | -6/Cetus | Spotted Cetus Guard 14875 | -6/Cetus | Spotted Cetus Guard 14878 | -6/Cetus | Destroyed Cetus Guard 14879 | -6/Cetus | Destroyed Cetus Guard 14880 | -6/Cetus | Destroyed Cetus Guard 14883 | -6/Cetus | Destroyed Cetus Guard 14888 | -6/Cetus | Manufactured an Enhanced Grunt 14891 | -6/Cetus | Discovered exit to Factory (range 16) 14896 | -6/Cetus | Met Revision 17 14908 | -6/Cetus | System corruption reached 10% 14913 | -6/Cetus | Manufactured an Enhanced Grunt 14938 | -6/Cetus | Manufactured an Enhanced Grunt 14963 | -6/Cetus | Manufactured an Enhanced Grunt 15068 | -6/Cetus | Murdered A7 15069 | -6/Cetus | Extracted ID and sensor layout for unrecognized location from A7's data core 15073 | -6/Cetus | Found Prototype Protection 15073 | -6/Cetus | Identified Med. Regenerative Plating 15106 | -6/Cetus | Entered Archives 15106 | -6/Archives | Accompanied by 6 allies 15166 | -6/Archives | Discovered new exit (range 16) 15197 | -6/Archives | Discovered new exit (range 16) 15372 | -6/Archives | Discovered exit to Factory (range 16) 16430 | -6/Archives | Entered Hub_04(d) 16430 | -6/Hub_04(d) | Accompanied by 5 allies 16570 | -6/Hub_04(d) | Discovered exit to Factory (range 19) 17076 | -6/Hub_04(d) | Discovered exit to Factory (range 18) 17480 | -6/Hub_04(d) | First assault squad dispatched 17546 | -6/Hub_04(d) | Network Hub disabled 17546 | -6/Hub_04(d) | Network Hub disabled 17562 | -6/Hub_04(d) | Spotted Lightning 17595 | -6/Hub_04(d) | Spotted Lightning 17599 | -6/Hub_04(d) | Spotted Lightning 17620 | -6/Hub_04(d) | Entered Factory 17620 | -5/Factory | Evolved 2 slots: Utility x2 17718 | -5/Factory | Identified exit to Upper Caves 17871 | -5/Factory | Central database locked down 18042 | -5/Factory | Repaired Quantum Shading Machine 18109 | -5/Factory | Build established: Hacker-Construct 18151 | -5/Factory | Repaired Adv. KE Penetrator 18253 | -5/Factory | Repaired Adv. KE Penetrator 18360 | -5/Factory | Repaired Adv. KE Penetrator 18469 | -5/Factory | Repaired Centrium Medium Armor Plating 18684 | -5/Factory | Cargo convoy interrupted 18766 | -5/Factory | Learned location of 2 exits from Upper Caves 18824 | -5/Factory | Learned location of Proximity Caves (-4) 18840 | -5/Factory | Learned location of Upper Caves (-5) 18846 | -5/Factory | Learned Research trap positions 18847 | -5/Factory | Loaded intel: 97 trap records 18852 | -5/Factory | Learned location of 2 exits from Upper Caves 18892 | -5/Factory | Learned Quarantine emergency access door positions 19015 | -5/Factory | Attached Gun Armor, gained temporary slots: Weapon x2 19060 | -5/Factory | Destroyed 7 combat bots 19120 | -5/Factory | First assault squad dispatched 19176 | -5/Factory | Destroyed 10 combat bots 19257 | -5/Factory | Destroyed 8 combat bots 19399 | -5/Factory | Build established: Scavenger-Tank 19476 | -5/Factory | Entered Upper Caves 19477 | -5/Upper Caves | Identified exit to Upper Caves 19590 | -5/Upper Caves | Entered a destroyed Warlord outpost 19848 | -5/Upper Caves | Build established: Scavenger-Skirmisher 20228 | -5/Upper Caves | Attracted the attention of an 0b10 checkpoint 20908 | -5/Upper Caves | Entered another Upper Caves area 20909 | -5/Upper Caves | Identified exit to Factory 20909 | -5/Upper Caves | Identified exit to Zhirov 21912 | -5/Upper Caves | Attacked by a delusional Derelict stockpiling parts 22022 | -5/Upper Caves | Build established: Scavenger-Gunner 22308 | -5/Upper Caves | Learned 8 Factory zone layouts 22558 | -5/Upper Caves | Build established: Scavenger-Skirmisher 22673 | -5/Upper Caves | Entered an active Warlord outpost 22697 | -5/Upper Caves | Learned Factory emergency access door positions 22813 | -5/Upper Caves | Entered Zhirov 22813 | -5/Zhirov | Accompanied by 1 ally 22813 | -5/Zhirov | Discovered new exit (range 4) 22853 | -5/Zhirov | Met Zhirov 22890 | -5/Zhirov | Found Alien Artifact 22890 | -5/Zhirov | Identified Integrated Dissipator 22890 | -5/Zhirov | Installed Integrated Dissipator, increased core heat dissipation (+20) 22910 | -5/Zhirov | Found Alien Artifact 23000 | -5/Zhirov | Learned location of Testing (-3) 23000 | -5/Zhirov | Learned location of Command (-1) 23010 | -5/Zhirov | Zhirov requested help retrieving the SGEMP Prototype 23075 | -5/Zhirov | Entered Proximity Caves 23075 | -4/Proximity Caves | Accompanied by 1 ally 23154 | -4/Proximity Caves | Learned 8 Research zone layouts 23330 | -4/Proximity Caves | Learned Research interactive machine intel 23332 | -4/Proximity Caves | Found DCF Scrap (11 items) 23408 | -4/Proximity Caves | Spotted B-86 Titan 23437 | -4/Proximity Caves | Destroyed B-86 Titan 23461 | -4/Proximity Caves | Lost 3 parts (1p1u1w) 23669 | -4/Proximity Caves | Build established: Scavenger-Construct 24077 | -4/Proximity Caves | Build established: Construct 24330 | -4/Proximity Caves | Entered Factory 24330 | -4/Factory | Evolved 2 slots: Power x1, Utility x1 24331 | -4/Factory | Identified exit to Armory 24332 | -4/Factory | Identified exit to Research 24352 | -4/Factory | Found Quantum Capacitor 24362 | -4/Factory | Identified Transdimensional Reconstructor 24430 | -4/Factory | Repaired Centrium Medium Armor Plating? 24613 | -4/Factory | Build established: Hacker-Construct 24753 | -4/Factory | Spotted B-86 Titan 24764 | -4/Factory | Discovered new exit (range 7) 24930 | -4/Factory | Destroyed B-86 Titan 25010 | -4/Factory | Build established: Hacker-Mutant 25482 | -4/Factory | Discovered exit to Research (range 8) 25533 | -4/Factory | Repaired HERF Cannon? 25581 | -4/Factory | Repaired Neutrino Core+ 25614 | -4/Factory | Repaired Lgt. Antimatter Reactor 25658 | -4/Factory | Entered Armory 25806 | -4/Armory | Build established: Hacker-Assassin 26952 | -4/Armory | Found Gamma Bomb Array 27158 | -4/Armory | First assault squad dispatched 27231 | -4/Armory | P-70 Sage assimilated allied Swordsman 7c 27301 | -4/Armory | Discovered exit to Research (range 22) 27478 | -4/Armory | Destroyed Armor Guard 27522 | -4/Armory | Destroyed Armor Guard 27613 | -4/Armory | Destroyed Armor Guard 27674 | -4/Armory | Destroyed Armor Guard 27709 | -4/Armory | Build established: Mutant 27781 | -4/Armory | Found Prototype Device 27781 | -4/Armory | Identified Exp. Weapon Cycler 27810 | -4/Armory | Found Exp. Weapon Cycler 27840 | -4/Armory | Breached Obliterator storage 27844 | -4/Armory | Found Disassembled Obliterator 27854 | -4/Armory | Found PL-3XN's Ring of Power 27954 | -4/Armory | Discovered new exit (range 24) 28011 | -4/Armory | Identified exit to Lab 28033 | -4/Armory | Entered Lab 28035 | -4/Lab | Discovered exit to Research (range 10) 28055 | -4/Lab | Hidden lab's door opened automatically 28055 | -4/Lab | Sensor layout match revealed 28056 | -4/Lab | Gained access to the hidden lab's interior 28056 | -4/Lab | Unable to decrypt terminal 28056 | -4/Lab | Opened the door to a hidden lab 28057 | -4/Lab | Unable to decrypt terminal 28155 | -4/Lab | Build established: Scavenger-Skirmisher 28227 | -4/Lab | Found Alien Artifact 28227 | -4/Lab | Identified Core Expander 28227 | -4/Lab | Installed Core Expander, added new Utility slot 28237 | -4/Lab | Found Alien Artifact 28237 | -4/Lab | Identified Integrated Reactor 28237 | -4/Lab | Installed Integrated Reactor, increased core energy generation (+10) 28327 | -4/Lab | Found Prototype Energy Cannon 28331 | -4/Lab | Found Prototype Protection 28331 | -4/Lab | Identified Exp. Powered Armor 28336 | -4/Lab | Found Prototype Hackware 28347 | -4/Lab | Found Prototype Energy Cannon 28396 | -4/Lab | Identified Potential Cannon 28397 | -4/Lab | Identified Warp Cannon 28416 | -4/Lab | Found Transdimensional Reconstructor 28476 | -4/Lab | Identified Quantum Router 28491 | -4/Lab | Entered Research 28491 | -3/Research | Evolved 2 slots: Propulsion x1, Utility x1 28492 | -3/Research | Identified exit to Testing 28493 | -3/Research | Loaded intel: 64 trap records 28494 | -3/Research | Loaded intel: 44 interactive machine locations 28547 | -3/Research | Repaired Quantum Reactor 28691 | -3/Research | Revision forces began assault on 0b10 28753 | -3/Research | Met up with Revision 17++ 28776 | -3/Research | Build established: Hacker-Assassin 28833 | -3/Research | Fabricated Centrium Leg? 28997 | -3/Research | Fabricated Exp. Weapon Shielding (x1) 29191 | -3/Research | Research terminal network offline 29209 | -3/Research | Spotted B-86 Titan 29304 | -3/Research | Spotted B-86 Titan 29395 | -3/Research | Lost 4 allies 29607 | -3/Research | Discovered exit to Testing (range 23) 29714 | -3/Research | Discovered new exit (range 23) 29727 | -3/Research | Build established: Scavenger-Assassin 30019 | -3/Research | Found Prototype Processor 30019 | -3/Research | Identified Exp. Core Analyzer 30022 | -3/Research | Found Exp. Core Analyzer 30043 | -3/Research | Build established: Hacker-Assassin 30130 | -3/Research | Spotted Striker 30132 | -3/Research | Spotted Striker 30214 | -3/Research | Entered Testing 30258 | -3/Testing | Found Prototype Energy Cannon 30258 | -3/Testing | Identified Null Cannon 30405 | -3/Testing | Unchained authorized (DW-4LL) 30493 | -3/Testing | Identified exit to Research 30523 | -3/Testing | Found Prototype Energy Cannon 30523 | -3/Testing | Identified Imp. Potential Cannon 30573 | -3/Testing | Learned Quarantine terminal intel 30645 | -3/Testing | Learned Access terminal intel 30649 | -3/Testing | DW-4LL burst out of a wall 30662 | -3/Testing | System corruption reached 10% 30697 | -3/Testing | System corruption reached 30% 30733 | -3/Testing | Lost 12 parts (1p2n9u) 30733 | -3/Testing | Found Prototype Protection 30733 | -3/Testing | Identified Hvy. Regenerative Plating 30738 | -3/Testing | Found Prototype Protection 30788 | -3/Testing | Found Corrupted Exp. Terrain Scan Processor 30865 | -3/Testing | DW-4LL burst out of a wall 30870 | -3/Testing | Entered Research 30870 | -2/Research | Evolved 2 slots: Propulsion x1, Utility x1 30978 | -2/Research | Build established: Scavenger-Mutant 31155 | -2/Research | Identified exit to Access 31365 | -2/Research | Identified exit to Quarantine 31440 | -2/Research | Identified SHELL Armor 31538 | -2/Research | Unchained authorized (DW-4LL) 31607 | -2/Research | Destroyed 7 combat bots 31668 | -2/Research | Entered Quarantine 31670 | -2/Quarantine | Loaded intel: 15 terminal locations 31755 | -2/Quarantine | Found Exp. Core Analyzer 31758 | -2/Quarantine | Found Exp. Core Analyzer 31784 | -2/Quarantine | Found Alien Energy Cannon 31843 | -2/Quarantine | Found Alien Artifact 31845 | -2/Quarantine | Identified Subatomic Replicator 31845 | -2/Quarantine | Used Subatomic Replicator to replicate PL-3XN's Ring of Power 31850 | -2/Quarantine | Assembled PL-3XN's Obliterator 31872 | -2/Quarantine | Found Alien Slashing Weapon 31872 | -2/Quarantine | Identified Sigix Broadsword 32126 | -2/Quarantine | Unchained authorized (6S-H0T) 32241 | -2/Quarantine | Found Transdimensional Reconstructor 32247 | -2/Quarantine | Found Transdimensional Reconstructor 32258 | -2/Quarantine | Found Alien Artifact 32312 | -2/Quarantine | Warped through subspace 32392 | -2/Quarantine | Spotted Fortress 32405 | -2/Quarantine | Found Prototype Device 32405 | -2/Quarantine | Identified Thermal Barrier 32412 | -2/Quarantine | Found Prototype Device 32412 | -2/Quarantine | Identified Exp. EM Shield 32416 | -2/Quarantine | Found Prototype Device 32416 | -2/Quarantine | Identified Exp. Force Field 32458 | -2/Quarantine | Build established: Scientist-Mutant 32493 | -2/Quarantine | Discovered new exit (range 6) 32493 | -2/Quarantine | Discovered new exit (range 6) 32497 | -2/Quarantine | Identified exit to Protoforge 32510 | -2/Quarantine | Entered Protoforge 32538 | -2/Protoforge | Identified Core Cannon 32546 | -2/Protoforge | Superfortress began startup sequence 32715 | -2/Protoforge | System corruption reached 10% 32755 | -2/Protoforge | Identified Dimensional Node Initializer 32755 | -2/Protoforge | Initialized slip node 32780 | -2/Protoforge | Spotted Hotshot 32782 | -2/Protoforge | Spotted Hotshot 32782 | -2/Protoforge | Spotted Hotshot 32783 | -2/Protoforge | Spotted Hotshot 32786 | -2/Protoforge | Spotted Hotshot 32790 | -2/Protoforge | Destroyed Hotshot 32790 | -2/Protoforge | Destroyed Hotshot 32790 | -2/Protoforge | Destroyed Hotshot 32791 | -2/Protoforge | Destroyed Hotshot 32795 | -2/Protoforge | Destroyed Hotshot 32816 | -2/Protoforge | Destroyed 9 combat bots 32837 | -2/Protoforge | Build established: Scientist-Assassin 33010 | -2/Protoforge | First assault squad dispatched 33010 | -2/Protoforge | Found Prototype Device 33010 | -2/Protoforge | Identified Cep. Antimissile System 33128 | -2/Protoforge | Spotted V885-c 33198 | -2/Protoforge | Destroyed V885-c 33227 | -2/Protoforge | Found Prototype Hover Unit 33228 | -2/Protoforge | Identified Cep. Combat Aerolev Unit 33254 | -2/Protoforge | Found Prototype Device 33262 | -2/Protoforge | Spotted Immortal 33313 | -2/Protoforge | Destroyed Immortal 33317 | -2/Protoforge | Found Exp. Jetlance 33327 | -2/Protoforge | Found Prototype Processor 33327 | -2/Protoforge | Identified Exp. Melee Analysis Suite 33343 | -2/Protoforge | Spotted Decapitator 33343 | -2/Protoforge | Spotted Decapitator 33343 | -2/Protoforge | Spotted Decapitator 33343 | -2/Protoforge | Spotted Decapitator 33349 | -2/Protoforge | Destroyed Decapitator 33356 | -2/Protoforge | Destroyed Decapitator 33359 | -2/Protoforge | Destroyed Decapitator 33360 | -2/Protoforge | Destroyed Decapitator 33508 | -2/Protoforge | Found Femtoactuators 33512 | -2/Protoforge | Found Prototype Processor 33512 | -2/Protoforge | Identified Cep. Melee Reflex Suite 33532 | -2/Protoforge | Found Faulty Femtoactuators 33534 | -2/Protoforge | Found Cep. Melee Reflex Suite 33538 | -2/Protoforge | Identified Crosscalibrator 33542 | -2/Protoforge | Found Faulty Cep. Melee Reflex Suite 33612 | -2/Protoforge | Spotted V158-k 33612 | -2/Protoforge | Spotted V871-v 33612 | -2/Protoforge | Spotted V979-m 33624 | -2/Protoforge | Found Cep. Biometal Exoskeleton 33651 | -2/Protoforge | Build established: Scavenger-Gladiator 33664 | -2/Protoforge | Forge Plexus network access discovered 33732 | -2/Protoforge | Destroyed 10 combat bots 33782 | -2/Protoforge | Found Cep. Antigrav Storage Unit 33787 | -2/Protoforge | Found Cep. Chromion Battery 33789 | -2/Protoforge | Found Cep. NT7 Matterbank 33893 | -2/Protoforge | Found Cep. Combat Aerolev Unit 33981 | -2/Protoforge | Found Cep. Zero-point Core 33984 | -2/Protoforge | Found Faulty Cep. Zero-point Core 33987 | -2/Protoforge | Found Faulty Cep. Zero-point Core 34063 | -2/Protoforge | Found Faulty Cep. Combat Aerolev Unit 34147 | -2/Protoforge | Found Exp. Force Booster 34152 | -2/Protoforge | Found Cep. Weapon Articulator 34256 | -2/Protoforge | Destroyed 10 combat bots 34279 | -2/Protoforge | Spotted Decapitator 34292 | -2/Protoforge | Spotted Immortal 34292 | -2/Protoforge | Spotted Immortal 34299 | -2/Protoforge | Spotted V020-p 34301 | -2/Protoforge | Destroyed V020-p 34303 | -2/Protoforge | Found Cep. Reaction Jets 34306 | -2/Protoforge | Found Faulty Cep. Reaction Jets 34319 | -2/Protoforge | Destroyed Immortal 34323 | -2/Protoforge | Destroyed Immortal 34335 | -2/Protoforge | Found Cep. Phase Shift Module 34583 | -2/Protoforge | Spotted AP7-3 34588 | -2/Protoforge | Spotted AP7-3 34617 | -2/Protoforge | Destroyed AP7-3 34626 | -2/Protoforge | Destroyed AP7-3 34635 | -2/Protoforge | Found Prototype Processor 34635 | -2/Protoforge | Identified Exp. Targeting Computer 34653 | -2/Protoforge | Found Prototype Device 34653 | -2/Protoforge | Identified Cep. Dimensional Manipulator 34655 | -2/Protoforge | Found Cep. Core Analysis Suite 34658 | -2/Protoforge | Found Faulty Cep. Core Analysis Suite 34659 | -2/Protoforge | Found Cep. Impact Drone Bay 34662 | -2/Protoforge | Found Faulty Cep. Impact Drone Bay 34665 | -2/Protoforge | Found Cld. Directed Potential Cannon 34685 | -2/Protoforge | Found Cep. Cloak Mesh 34860 | -2/Protoforge | Found Faulty Cep. Zero-point Core 34993 | -2/Protoforge | Warped through subspace to slip node 35007 | -2/Protoforge | Entered Access 35007 | -1/Access | Evolved 2 slots: Power x1, Utility x1 35008 | -1/Access | Loaded intel: 21 terminal locations 35226 | -1/Access | Unchained authorized (6S-H0T) 35257 | -1/Access | First assault squad dispatched 35300 | -1/Access | High security lockdown imminent 35370 | -1/Access | Destroyed 12 combat bots 35380 | -1/Access | High security lockdown engaged 35409 | -1/Access | Discovered new exit (range 9) 35495 | -1/Access | Destroyed 7 combat bots 35565 | -1/Access | Spotted Investigator 35576 | -1/Access | Destroyed 11 combat bots 35613 | -1/Access | Entered Command 35664 | -1/Command | Spotted M Guard 35664 | -1/Command | Spotted M Guard 35665 | -1/Command | Spotted Combat Programmer 35665 | -1/Command | Spotted Combat Programmer 35731 | -1/Command | Destroyed M Guard 35738 | -1/Command | Destroyed Combat Programmer 35748 | -1/Command | Destroyed Combat Programmer 35763 | -1/Command | Destroyed M Guard 35763 | -1/Command | All MAIN.C guards destroyed 35767 | -1/Command | Found Thermal Barrier 35769 | -1/Command | Found Prototype Device 35769 | -1/Command | Identified AEGIS Remote Shield 35772 | -1/Command | Found Prototype Reactor 35772 | -1/Command | Identified Zero-point Reactor 35838 | -1/Command | High security lockdown imminent 35883 | -1/Command | System corruption reached 10% 35918 | -1/Command | High security lockdown engaged 35952 | -1/Command | Destroyed Executioner 35952 | -1/Command | Destroyed Striker 35952 | -1/Command | Destroyed Striker 35952 | -1/Command | Destroyed Executioner 36034 | -1/Command | Destroyed 86 combat bots 36073 | -1/Command | Spotted Investigator 36073 | -1/Command | Scanned by Researcher 36073 | -1/Command | Destroyed Investigator 36075 | -1/Command | Spotted Striker 36076 | -1/Command | Destroyed Striker 36100 | -1/Command | PL-3XN's Obliterator vaporized one of its rings 36151 | -1/Command | Destroyed 63 combat bots 36168 | -1/Command | Met MAIN.C 36193 | -1/Command | 0b10 Conduit disabled 36199 | -1/Command | Destroyed MAIN.C Shell 36200 | -1/Command | MAIN.C activated Command garrisons 36226 | -1/Command | Destroyed MAIN.C 36227 | -1/Command | Discovered new exit (range 32) 36227 | -1/Command | Discovered new exit (range 78) 36227 | -1/Command | Extracted map data and part IDs from MAIN.C's data core 36233 | -1/Command | Found Zero-point Reactor 36318 | -1/Command | Spotted B-99 Colossus 36360 | -1/Command | Found Exp. System Purifier 36362 | -1/Command | Found Exp. Weapon Cycler 36368 | -1/Command | Found Null Cannon 36502 | -1/Command | Destroyed B-99 Colossus 36541 | -1/Command | Build established: Scavenger-Sprinter 36549 | -1/Command | Warped through subspace to slip node 36549 | -1/Command | Discovered new exit (range 4) 36559 | -1/Command | Entered Access_0 36560 | -1/Access_0 | Met Architect 36584 | -1/Access_0 | Architect warped through subspace 36611 | -1/Access_0 | Architect warped through subspace 36637 | -1/Access_0 | Architect warped through subspace 36647 | -1/Access_0 | Subspace Access Node disabled 36655 | -1/Access_0 | Architect warped through subspace 36665 | -1/Access_0 | Subspace Access Node disabled 36671 | -1/Access_0 | A6 warped into view 36672 | -1/Access_0 | Architect warped through subspace 36678 | -1/Access_0 | Allies destroyed A6 36694 | -1/Access_0 | Architect warped through subspace 36708 | -1/Access_0 | Architect warped through subspace 36729 | -1/Access_0 | Architect warped through subspace 36733 | -1/Access_0 | Subspace Access Node disabled 36745 | -1/Access_0 | Architect warped through subspace 36766 | -1/Access_0 | Architect warped through subspace 36793 | -1/Access_0 | Architect warped through subspace 36818 | -1/Access_0 | Architect warped through subspace 36824 | -1/Access_0 | A5 warped into view 36830 | -1/Access_0 | Destroyed A5 36838 | -1/Access_0 | Architect warped through subspace 36857 | -1/Access_0 | Subspace Access Node disabled 36899 | -1/Access_0 | Found Hpw. Transdimensional Reconstructor 36961 | -1/Access_0 | A4 warped into view 36971 | -1/Access_0 | Singularity Gate disabled 36971 | -1/Access_0 | Singularity Gate disabled 36977 | -1/Access_0 | Destroyed A4 37010 | -1/Access_0 | Extracted Singularity Gate Test 138-C access codes from A2's data core 37016 | -1/Access_0 | Destroyed Architect 37018 | -1/Access_0 | Extracted unknown sensor trigger ID from Architect's data core 37018 | -1/Access_0 | Found Hpw. Transdimensional Reconstructor 37037 | -1/Access_0 | Found Exp. Phase Shifter 37039 | -1/Access_0 | Found Exp. Phase Shifter 37046 | -1/Access_0 | Found Sigix Corpse 37138 | -1/Access_0 | Warped through subspace to slip node 37138 | -1/Access_0 | Discovered new exit (range 8) 37171 | -1/Access_0 | PL-3XN's Obliterator vaporized one of its rings 37221 | -1/Access_0 | PL-3XN's Obliterator suddenly exploded 37226 | *** | Establishing 0b11! Last Messages --------------- 37181_ Obliteration Disc penetrates Earth. 37182_ The unstable cave ceiling collapses. 37185_ Obliteration Disc penetrates Earth. 37186_ The unstable cave ceiling collapses. 37189_ Obliteration Disc penetrates Earth. 37190_ The unstable cave ceiling collapses. 37193_ Obliteration Disc penetrates Earth. 37194_ The unstable cave ceiling collapses. 37197_ Obliteration Disc penetrates Earth. 37204_ The unstable cave ceiling collapses. 37205_ Dropped Cep. Chromion Battery. 37206_ Acquired Cep. Chromion Battery. 37207_ Dropped Cep. NT7 Matterbank. 37208_ Extracted 245 matter. 37208_ Acquired Cep. NT7 Matterbank. 37209_ Obliteration Disc penetrates Earth. 37210_ The unstable cave ceiling collapses. 37213_ Obliteration Disc penetrates Earth. 37218_ The unstable cave ceiling collapses. 37221_ PL-3XN's Obliterator suddenly explodes. Map ----- +----------------------------------------------------+ | | | | | | | | | | | | | | | | | | | | | | | | | | | | | | | | | ?????????????????????????????????????????????????? | | ?????????????????????######??????????????????????? | | ??????????????????#### ####??????????????????? | | ????????????????### ###????????????????? | | ????????????#??## ##???????????????? | | ??????????? # ## #???????????????? | | ??????????? ;;; ##??????????????? | | ???????????# ;; ;; #??????????????? | | ?????????????# ; ; #??????????????? | | ?????????????## @ ; ##?????????????? | | ?????????????# ; ##????????????? | | ?????????????# ; #???????????? | | ????????? ????????? | | ??????????? ## # #?????????? | | ?????????????# ##????????????? | | ?????????????## ##?????????????? | | ??????????????# #??????????????? | | ??????????????# #?????????????? | | ??????????????## ????????????? | | ???????????????# # ???????????? | | ???????????????# ## ???????????? | | ??????????????? # #?? ????????????? | | ?????????????? ## # ; # ???????????????? | | ?????????????# ? # ;; # ??????????????? | | ??????????????? ?? #"; ? ???????????????? | | ?????????????????# ?# ?????????????????? | | ????????????????????? ????????????????????? | | ?????????????????????? ??????????????????????? | | ?????????????????????????????????????????????????? | | ?????????????????????????????????????????????????? | | ?????????????????????????????????????????????????? | | ?????????????????????????????????????????????????? | | ?????????????????????????????????????????????????? | | ?????????????????????????????????????????????????? | +----------------------------------------------------+ Best States ------------- Heat Dissipation 100 Coolant Potential 80 Energy Generation 99 Energy Capacity 1520 Matter Stores 300 Matter Capacity 300 Sight Range 22 Robot Scan Range 18 Terrain Scan Range 24 Terrain Scan Density 1010 Jamming Range 16 Cloak Strength 6 Additional Mass Support 30 Base Temperature (-) 100 Armor Coverage 1000 Resistance: EM 75 Weapon Shielding 90 Point Defense Rating 480 Weapon Cycling 30 Melee Speed Boost 50 Phase Shifting 25 Evasion (%) 101 Targeting Accuracy 30 Melee Accuracy 12 Core Analysis 11 Armor Integrity Analysis 40 Recoil Reduction 6 Matter Filtering 50 Energy Filtering 50 Offensive Hacking 22 Defensive Hacking 39 Trap Extractor Capacity 8 Item Schematics ----------------- Multitool | -8/Materials | Scanalyzed Imp. Weapon Shielding | -8/Storage | Hacked Imp. Utility Shielding | -8/Storage | Hacked Imp. Propulsion Shielding | -8/Storage | Hacked Trap Extractor | -8/Recycling | Hacked Great Maul | -8/Recycling | Hacked Exp. Weapon Shielding | -5/Factory | Hacked Weapon Mount | -5/Factory | Hacked Adv. System Shield | -5/Factory | Hacked Assault Drone Bay | -5/Zhirov | Free Exp. Heat Sink | -5/Zhirov | Free Exp. Optical Array | -5/Zhirov | Free Imp. Arc Thrower | -5/Zhirov | Free Centrium Medium Armor Plating | -4/Factory | Scanalyzed Cld. Linear Gravjet | -3/Testing | Hacked Adv. EM Shield | -3/Testing | Archive Hds. Centrium Wheel | -3/Testing | Archive Adv. KE Penetrator | -3/Testing | Archive Exp. Signal Interpreter | -3/Testing | Archive Enh. Flexi-carbon Leg | -3/Testing | Archive Exp. Terrain Scan Processor | -2/Quarantine | Archive Adv. Energy Well | -2/Quarantine | Archive Com. Linear Accelerator | -2/Quarantine | Archive Prc. Energy Filter | -2/Quarantine | Archive Exp. Coolant Injector | -2/Quarantine | Archive Com. Mass Driver | -2/Protoforge | Archive Hvy. Neutron Cannon | -2/Protoforge | Archive Graviton Cannon | -2/Protoforge | Archive Exp. Field Recycling Unit | -2/Protoforge | Archive Robot Schematics ------------------ M-28 Smith | -8/Storage | Hacked B-74 Champion | -3/Testing | Archive H-88 Terminator | -2/Quarantine | Archive A-15 Conveyor | -2/Protoforge | Archive A-27 Freighter | -2/Protoforge | Archive T-07 Excavator | -2/Protoforge | Archive Fabricated ------------ Centrium Leg | x1 | -3/Research | Preloaded Exp. Weapon Shielding | x1 | -3/Research Repaired ---------- Imp. Treads | 12% | -8/Storage Quantum Shading Machine | 27% | -5/Factory Adv. KE Penetrator | 54% | -5/Factory Adv. KE Penetrator | 62% | -5/Factory Adv. KE Penetrator | 77% | -5/Factory Centrium Medium Armor Plating | 80% | -5/Factory Centrium Medium Armor Plating | 57% | -4/Factory HERF Cannon | 39% | -4/Factory Neutrino Core | 11% | -4/Factory Lgt. Antimatter Reactor | 41% | -4/Factory Quantum Reactor | 66% | -3/Research Studied --------- Lgt. Treads | -8/Materials | Hacked Flak Cannon | -8/Materials | Hacked Lrn. Missile Launcher | -6/Factory | Hacked Neutrino Core | -4/Factory | Hacked Centrium Leg | -3/Research | Hacked Biometal Leg | -3/Research | Hacked Quantum Reactor | -3/Research | Hacked HERF Cannon | -3/Research | Hacked Flexi-carbon Leg | -3/Research | Hacked Gamma Bomb Array | -3/Testing | Hacked Imp. Thunder Leg | -2/Quarantine | Hacked Lgt. Quantum Reactor | -2/Quarantine | Hacked Alien Tech Used ----------------- Integrated Dissipator Core Expander Integrated Reactor Subatomic Replicator Sigix Broadsword Transdimensional Reconstructor Core Cannon Dimensional Node Initializer High-powered Transdimensional Reconstructor Achievements -------------- My Bad Suspicious Challenges ------------ None Game ------ Seed StructuralConceptTrident Manual? 0 Play Time 08:41:56 Cumulative 719.3 hours Start 2025.12.17 @ 20:25:25 End 2025.12.21 @ 03:15:39 Sessions 5 Manual Loads 0 Difficulty Rogue Special Mode None Game No. 230 Rogue 214 Adventurer 15 Explorer 1 Win Type 1 Total 41 Types 10/5/10/2/2/0/6/3/1/2 Lore% 96 Gallery% 91 Achievement% 70 Wizard Run 0 Options --------- Layout 0 ASCII 0 Keyboard 0 Movement Numpad Keybinds 0 Fullscreen 1 Font 18/SmallcapsGlow Map View 76x50 Zoom Use 0% Tactical HUD 1 Map Filters NONE Filters NONE Steam 1 RUN: 3c199acf-3a2f-47ec-8877-32f7a666bb98